OrganisationNameLabel,OrganisationURI,EffectiveDate,Directorate/ServiceWhereExpenditureIncurred,ServiceCategoryLabel,ServiceCategoryURI,Supplier,SupplierRegisteredCompany Number,PaymentDate,TransactionNumber,NetAmount,IrrecoverableVAT,PurposeOfSpend,ProcurementClassification:ProclassLabel,ProcrementClassification:ProClassCode
South Lakeland District Council,http://opendatacommunities.org/id/district-council/south-lakeland,31/12/2017,Lake Wardens,Cultural Environmental Regulatory & Planning Services,http://opendatacommunities.org/def/concept/finance/sercop/objective/104,TECHNIJET LTD,2776601,11/12/2017,71807,83.56,0,Bi-Annual Service of Pressure Washers,139999,Cleaning & Janitorial Not Elsewhere Clas
South Lakeland District Council,http://opendatacommunities.org/id/district-council/south-lakeland,31/12/2017,Business Support Community Services,Cultural Environmental Regulatory & Planning Services,http://opendatacommunities.org/def/concept/finance/sercop/objective/104,UNITED UTILITIES WATER PLC,2366678,18/12/2017,72299,1332.96,0,Private Water Analysis - September 2017,371300,Utilities Water
South Lakeland District Council,http://opendatacommunities.org/id/district-council/south-lakeland,31/12/2017,Leisure and Wellbeing,Cultural Environmental Regulatory & Planning Services,http://opendatacommunities.org/def/concept/finance/sercop/objective/104,CONTINENTAL LANDSCAPES LTD,2108452,04/12/2017,72623,85,0,"To refurbish a seat in Ford Park, along",391310,Construction Open Spaces Construction
South Lakeland District Council,http://opendatacommunities.org/id/district-council/south-lakeland,31/12/2017,Lake Wardens,Cultural Environmental Regulatory & Planning Services,http://opendatacommunities.org/def/concept/finance/sercop/objective/104,CUMBRIA WASTE RECYCLING LTD,3162439,04/12/2017,72806,265.88,0,Monthly collection of Refuse Wheelie,182012,Environment Waste Management Recycling
South Lakeland District Council,http://opendatacommunities.org/id/district-council/south-lakeland,31/12/2017,Development Implementation,External Trading Accounts,,FGH SECURITY,,11/12/2017,72863,834.96,0,"New Road - 2 x SIA for Sunday 17th,",192200,Facilities Security
South Lakeland District Council,http://opendatacommunities.org/id/district-council/south-lakeland,31/12/2017,Business Support Community Services,SLDC as Agent,,CUMBRIA COUNTY COUNCIL,,11/12/2017,72871,162,0,DBS Checks for Taxi Drivers,908000,Public Bodies Council support services
South Lakeland District Council,http://opendatacommunities.org/id/district-council/south-lakeland,31/12/2017,Business Support Community Services,Internal Trading Accounts,,EK MOTOR FACTORS LTD,838524,04/12/2017,73039,7.5,0,Parts,381400,Vehicle Mgt Maintenance
South Lakeland District Council,http://opendatacommunities.org/id/district-council/south-lakeland,31/12/2017,Business Support Community Services,SLDC as Agent,,CUMBRIA COUNTY COUNCIL,,11/12/2017,73076,54,0,DBS Checks for Taxi Drivers,908000,Public Bodies Council support services
South Lakeland District Council,http://opendatacommunities.org/id/district-council/south-lakeland,31/12/2017,Development Implementation,Central Services,http://opendatacommunities.org/def/concept/finance/sercop/objective/102,ADECCO UK LIMITED,593232,06/12/2017,73135,73.92,0,Cleaner for SLDC - (6 hours per,261400,HR Temporary & Agency Staff
South Lakeland District Council,http://opendatacommunities.org/id/district-council/south-lakeland,31/12/2017,Development Management,Cultural Environmental Regulatory & Planning Services,http://opendatacommunities.org/def/concept/finance/sercop/objective/104,CHRIS BOWKER LTD,1642561,06/12/2017,73136,45,0,Checking of electrical,101100,Building Electrical
South Lakeland District Council,http://opendatacommunities.org/id/district-council/south-lakeland,31/12/2017,Development Management,Cultural Environmental Regulatory & Planning Services,http://opendatacommunities.org/def/concept/finance/sercop/objective/104,CHRIS BOWKER LTD,1642561,06/12/2017,73149,30,0,Checking of electrical,101100,Building Electrical
South Lakeland District Council,http://opendatacommunities.org/id/district-council/south-lakeland,31/12/2017,ICT Group,Highways & Transport Services,http://opendatacommunities.org/def/concept/finance/sercop/objective/107,OPTECH FIBRES LTD,5442069,06/12/2017,73173,625,0,"as per quote OPT/LJ/16493, see extra",271200,ICT Hardware
South Lakeland District Council,http://opendatacommunities.org/id/district-council/south-lakeland,31/12/2017,Printing Section,Central Services,http://opendatacommunities.org/def/concept/finance/sercop/objective/102,ROSEFOX PAPER LIMITED,1655083,06/12/2017,73233,34.52,0,Target 100gsm SRA3,341000,Stationery Paper
South Lakeland District Council,http://opendatacommunities.org/id/district-council/south-lakeland,31/12/2017,Policy & Partnerships,Central Services,http://opendatacommunities.org/def/concept/finance/sercop/objective/102,Bloom Procurement Services Ltd,,20/12/2017,73241,14006.82,0,Ignite - Future Model Consultancy,151900,Consultancy Management
South Lakeland District Council,http://opendatacommunities.org/id/district-council/south-lakeland,31/12/2017,Business Support Community Services,Central Services,http://opendatacommunities.org/def/concept/finance/sercop/objective/102,CUMBRIA COUNTY COUNCIL,,11/12/2017,73265,3998.6,0,LAND CHARGE SEARCH ENQUIRIES HIGHWAYS,908000,Public Bodies Council support services
South Lakeland District Council,http://opendatacommunities.org/id/district-council/south-lakeland,31/12/2017,Legal Services,Central Services,http://opendatacommunities.org/def/concept/finance/sercop/objective/102,Napthens Solicitors,OC325775,04/12/2017,73268,1956,0,Lease for Windermere Aquatics,280000,Legal Services
South Lakeland District Council,http://opendatacommunities.org/id/district-council/south-lakeland,31/12/2017,Legal Services,Central Services,http://opendatacommunities.org/def/concept/finance/sercop/objective/102,Napthens Solicitors,OC325775,04/12/2017,73269,2937,0,Lease and Sublease for Abbott Hall,280000,Legal Services
South Lakeland District Council,http://opendatacommunities.org/id/district-council/south-lakeland,31/12/2017,Business Support Community Services,Central Services,http://opendatacommunities.org/def/concept/finance/sercop/objective/102,CUMBRIA COUNTY COUNCIL,,11/12/2017,73285,4507.2,0,LAND CHARGE SEARCH ENQUIRIES HIGHWAYS,908000,Public Bodies Council support services
South Lakeland District Council,http://opendatacommunities.org/id/district-council/south-lakeland,31/12/2017,Development Implementation,Cultural Environmental Regulatory & Planning Services,http://opendatacommunities.org/def/concept/finance/sercop/objective/104,WiFi Spark Ltd,,04/12/2017,73287,402.18,0,Kendal Town Centre Wifi Maintenance,271800,ICT Telecommunications Mobile
South Lakeland District Council,http://opendatacommunities.org/id/district-council/south-lakeland,31/12/2017,Democratic and Member Services,Cultural Environmental Regulatory & Planning Services,http://opendatacommunities.org/def/concept/finance/sercop/objective/104,GRANTS- MISCELLANEOUS,,04/12/2017,73292,500,0,locality donation to purchase Artsmart,201700,Financial Services Grants
South Lakeland District Council,http://opendatacommunities.org/id/district-council/south-lakeland,31/12/2017,Business Support Community Services,Housing Services,http://opendatacommunities.org/def/concept/finance/sercop/objective/108,Whiteheads Solicitors Ltd,5954961,04/12/2017,73293,77,0,Legal fee's for possession order,281300,Legal Services Legal Opinion
South Lakeland District Council,http://opendatacommunities.org/id/district-council/south-lakeland,31/12/2017,Business Support Community Services,Housing Services,http://opendatacommunities.org/def/concept/finance/sercop/objective/108,Andy Gale Housing Consultancy,,04/12/2017,73294,1185.4,0,Homelessness Reduction Act Training,152100,Consultancy Strategic Planning
South Lakeland District Council,http://opendatacommunities.org/id/district-council/south-lakeland,31/12/2017,Business Support Community Services,Housing Services,http://opendatacommunities.org/def/concept/finance/sercop/objective/108,STEELES REMOVALS LTD,3082686,04/12/2017,73295,575,0,Removal out of storage,191900,Facilities Removals
South Lakeland District Council,http://opendatacommunities.org/id/district-council/south-lakeland,31/12/2017,Business Support Community Services,Housing Services,http://opendatacommunities.org/def/concept/finance/sercop/objective/108,Leigh's Removals,,04/12/2017,73296,350,0,Removal out of storage,250000,Housing
South Lakeland District Council,http://opendatacommunities.org/id/district-council/south-lakeland,31/12/2017,Development Implementation,Culture and Related Serv,http://opendatacommunities.org/def/concept/finance/sercop/objective/104,LAMBERT SMITH HAMPTON GROUP,2521225,04/12/2017,73297,4000,0,Kendal Leisure Centre Fees,999999,Unclassifiable
South Lakeland District Council,http://opendatacommunities.org/id/district-council/south-lakeland,31/12/2017,Lake Wardens,Cultural Environmental Regulatory & Planning Services,http://opendatacommunities.org/def/concept/finance/sercop/objective/104,SP SERVICES (UK) LTD,3424705,06/12/2017,73298,68.85,0,12 x OT 001-002 Standard disposable O2,141100,Clothing Protective
South Lakeland District Council,http://opendatacommunities.org/id/district-council/south-lakeland,31/12/2017,Business Support Community Services,Transport Planning Policy,http://opendatacommunities.org/def/concept/finance/sercop/objective/107,ARCO LIMITED,133804,04/12/2017,73299,43.71,0,Cleaning materials,141100,Clothing Protective
South Lakeland District Council,http://opendatacommunities.org/id/district-council/south-lakeland,31/12/2017,Business Support Community Services,Internal Trading Accounts,,BERENDSEN UK LTD,228604,04/12/2017,73300,265.6,0,Workwear hire 02/04/17 - 31/03/18,161000,Domestic Goods Commercial
South Lakeland District Council,http://opendatacommunities.org/id/district-council/south-lakeland,31/12/2017,Business Support Community Services,Internal Trading Accounts,,SOLWAY DAF,1393710,04/12/2017,73301,126.11,0,Caps,381000,Vehicle Mgt Commercial
South Lakeland District Council,http://opendatacommunities.org/id/district-council/south-lakeland,31/12/2017,Business Support Community Services,Internal Trading Accounts,,BRIAN ARMISTEAD LTD T/A SINKFALL RECYCLI,4133280,04/12/2017,73302,867.56,0,Green waste tipping - 2017/18,391110,Construction Buildings Construction
South Lakeland District Council,http://opendatacommunities.org/id/district-council/south-lakeland,31/12/2017,Business Support Community Services,Internal Trading Accounts,,H WICKS (LINDAL) LTD,754590,04/12/2017,73303,300,0,"Gate fees, handling, transport & baling",182012,Environment Waste Management Recycling
South Lakeland District Council,http://opendatacommunities.org/id/district-council/south-lakeland,31/12/2017,Business Support Community Services,Central Services,http://opendatacommunities.org/def/concept/finance/sercop/objective/102,ARCO LIMITED,133804,04/12/2017,73304,8.88,0,Cleaning materials,141100,Clothing Protective
South Lakeland District Council,http://opendatacommunities.org/id/district-council/south-lakeland,31/12/2017,Business Support Community Services,Internal Trading Accounts,,ARCO LIMITED,133804,04/12/2017,73304,134.92,0,Cleaning materials,141100,Clothing Protective
South Lakeland District Council,http://opendatacommunities.org/id/district-council/south-lakeland,31/12/2017,Business Support Community Services,Internal Trading Accounts,,S J Bargh,532272,04/12/2017,73305,218.5,0,MOTs 2017/18,381400,Vehicle Mgt Maintenance
South Lakeland District Council,http://opendatacommunities.org/id/district-council/south-lakeland,31/12/2017,Business Support Community Services,Internal Trading Accounts,,Licence Bureau Ltd,4819897,04/12/2017,73306,321.6,0,Licence checks 2017/18,380000,Vehicle Management
South Lakeland District Council,http://opendatacommunities.org/id/district-council/south-lakeland,31/12/2017,Business Support Community Services,Internal Trading Accounts,,S J Bargh,532272,04/12/2017,73307,213.5,0,MOTs 2017/18,381400,Vehicle Mgt Maintenance
South Lakeland District Council,http://opendatacommunities.org/id/district-council/south-lakeland,31/12/2017,Business Support Community Services,Internal Trading Accounts,,EK MOTOR FACTORS LTD,838524,04/12/2017,73308,23.96,0,Parts,381400,Vehicle Mgt Maintenance
South Lakeland District Council,http://opendatacommunities.org/id/district-council/south-lakeland,31/12/2017,Business Support Community Services,Cultural Environmental Regulatory & Planning Services,http://opendatacommunities.org/def/concept/finance/sercop/objective/104,GB Sign Solutions Ltd,9609330,04/12/2017,73309,65,0,Street Nameplates 2016/17,102400,Building Signage
South Lakeland District Council,http://opendatacommunities.org/id/district-council/south-lakeland,31/12/2017,Business Support Community Services,Internal Trading Accounts,,SOLWAY DAF,1393710,04/12/2017,73310,280.54,0,Parts,381000,Vehicle Mgt Commercial
South Lakeland District Council,http://opendatacommunities.org/id/district-council/south-lakeland,31/12/2017,Business Support Community Services,Internal Trading Accounts,,ADECCO UK LIMITED,593232,04/12/2017,73311,52.56,0,Agency staff 2017/18,261400,HR Temporary & Agency Staff
South Lakeland District Council,http://opendatacommunities.org/id/district-council/south-lakeland,31/12/2017,Business Support Community Services,Internal Trading Accounts,,EK MOTOR FACTORS LTD,838524,04/12/2017,73312,35.94,0,Parts,381400,Vehicle Mgt Maintenance
South Lakeland District Council,http://opendatacommunities.org/id/district-council/south-lakeland,31/12/2017,Business Support Community Services,Internal Trading Accounts,,EK MOTOR FACTORS LTD,838524,04/12/2017,73313,23.58,0,Parts,381400,Vehicle Mgt Maintenance
South Lakeland District Council,http://opendatacommunities.org/id/district-council/south-lakeland,31/12/2017,Business Support Community Services,Internal Trading Accounts,,EK MOTOR FACTORS LTD,838524,04/12/2017,73314,73.82,0,Parts,381400,Vehicle Mgt Maintenance
South Lakeland District Council,http://opendatacommunities.org/id/district-council/south-lakeland,31/12/2017,Business Support Community Services,Internal Trading Accounts,,GARWOOD EUROPE LTD,4333504,04/12/2017,73315,105.63,0,Hopper seal,182011,Environment Waste Management Consumables
South Lakeland District Council,http://opendatacommunities.org/id/district-council/south-lakeland,31/12/2017,Business Support Community Services,Internal Trading Accounts,,EK MOTOR FACTORS LTD,838524,04/12/2017,73316,210,0,Parts,381400,Vehicle Mgt Maintenance
South Lakeland District Council,http://opendatacommunities.org/id/district-council/south-lakeland,31/12/2017,Business Support Community Services,Internal Trading Accounts,,EK MOTOR FACTORS LTD,838524,04/12/2017,73317,46.59,0,Parts,381400,Vehicle Mgt Maintenance
South Lakeland District Council,http://opendatacommunities.org/id/district-council/south-lakeland,31/12/2017,Business Support Community Services,Internal Trading Accounts,,A & W COMMERCIALS LTD,2630625,04/12/2017,73318,194.78,0,Hose,381400,Vehicle Mgt Maintenance
South Lakeland District Council,http://opendatacommunities.org/id/district-council/south-lakeland,31/12/2017,Business Support Community Services,Internal Trading Accounts,,EK MOTOR FACTORS LTD,838524,04/12/2017,73319,24.34,0,Parts,381400,Vehicle Mgt Maintenance
South Lakeland District Council,http://opendatacommunities.org/id/district-council/south-lakeland,31/12/2017,Business Support Community Services,Internal Trading Accounts,,EK MOTOR FACTORS LTD,838524,04/12/2017,73320,63.11,0,Parts,381400,Vehicle Mgt Maintenance
South Lakeland District Council,http://opendatacommunities.org/id/district-council/south-lakeland,31/12/2017,Business Support Community Services,Internal Trading Accounts,,TPS Preston,,04/12/2017,73321,44.34,0,Parts,381400,Vehicle Mgt Maintenance
South Lakeland District Council,http://opendatacommunities.org/id/district-council/south-lakeland,31/12/2017,Business Support Community Services,Internal Trading Accounts,,VOLVO GROUP UK LTD,2190944,04/12/2017,73322,420,0,Starter motor,381000,Vehicle Mgt Commercial
South Lakeland District Council,http://opendatacommunities.org/id/district-council/south-lakeland,31/12/2017,Business Support Community Services,Internal Trading Accounts,,VOLVO GROUP UK LTD,2190944,04/12/2017,73323,101.56,0,Bolts,381000,Vehicle Mgt Commercial
South Lakeland District Council,http://opendatacommunities.org/id/district-council/south-lakeland,31/12/2017,Business Support Community Services,Internal Trading Accounts,,FST CONSUMABLES LTD,1342012,04/12/2017,73324,100.93,0,Consumables 01/04/17- 31/03/18,101600,Building Hand Tools
South Lakeland District Council,http://opendatacommunities.org/id/district-council/south-lakeland,31/12/2017,Business Support Community Services,Internal Trading Accounts,,HYDRAIR TRUCK & TRAILER PARTS LTD,,04/12/2017,73325,143.89,0,Parts,381500,Vehicle Mgt Parts
South Lakeland District Council,http://opendatacommunities.org/id/district-council/south-lakeland,31/12/2017,Business Support Community Services,Internal Trading Accounts,,EK MOTOR FACTORS LTD,838524,04/12/2017,73326,31.3,0,Parts,381400,Vehicle Mgt Maintenance
South Lakeland District Council,http://opendatacommunities.org/id/district-council/south-lakeland,31/12/2017,Business Support Community Services,Internal Trading Accounts,,EK MOTOR FACTORS LTD,838524,04/12/2017,73327,-24.04,0,Parts,381400,Vehicle Mgt Maintenance
South Lakeland District Council,http://opendatacommunities.org/id/district-council/south-lakeland,31/12/2017,Business Support Community Services,Internal Trading Accounts,,TPS Preston,,04/12/2017,73328,49.74,0,Parts,381400,Vehicle Mgt Maintenance
South Lakeland District Council,http://opendatacommunities.org/id/district-council/south-lakeland,31/12/2017,Business Support Community Services,Internal Trading Accounts,,K S INTERNATIONAL LTD,2703321,04/12/2017,73329,407,0,Parta,381500,Vehicle Mgt Parts
South Lakeland District Council,http://opendatacommunities.org/id/district-council/south-lakeland,31/12/2017,Business Support Community Services,Internal Trading Accounts,,VOLVO GROUP UK LTD,2190944,04/12/2017,73330,36.76,0,Filter,381000,Vehicle Mgt Commercial
South Lakeland District Council,http://opendatacommunities.org/id/district-council/south-lakeland,31/12/2017,Business Support Community Services,Internal Trading Accounts,,DENNIS EAGLE LTD,3794455,04/12/2017,73331,474.89,0,Parts,381300,Vehicle Mgt Industrial
South Lakeland District Council,http://opendatacommunities.org/id/district-council/south-lakeland,31/12/2017,Electoral Services,Central Services,http://opendatacommunities.org/def/concept/finance/sercop/objective/102,THOMSON REUTERS (PROFESSIONAL) UK LTD,1679046,04/12/2017,73332,204,0,Schofields Election Law Issue 37,202100,Financial Services Subscriptions
South Lakeland District Council,http://opendatacommunities.org/id/district-council/south-lakeland,31/12/2017,Development Implementation,External Trading Accounts,,FGH SECURITY,,04/12/2017,73341,1267.35,0,"New Road - 2 x SIA for Sunday 17th,",192200,Facilities Security
South Lakeland District Council,http://opendatacommunities.org/id/district-council/south-lakeland,31/12/2017,Development Implementation,Planning and Development,,LAMBERT SMITH HAMPTON GROUP,2521225,04/12/2017,73342,1397,0,Demolition of Ulverston Former Knitwear,999999,Unclassifiable
South Lakeland District Council,http://opendatacommunities.org/id/district-council/south-lakeland,31/12/2017,Development Implementation,Central Services,http://opendatacommunities.org/def/concept/finance/sercop/objective/102,St John's Chambers,,04/12/2017,73343,500,0,Highways Advice for Farmers Market for,281200,Legal Services General Support
South Lakeland District Council,http://opendatacommunities.org/id/district-council/south-lakeland,31/12/2017,Electoral Services,Central Services,http://opendatacommunities.org/def/concept/finance/sercop/objective/102,SCI PRINT LTD,,04/12/2017,73344,883.47,0,ITR's 6 November,191600,Facilities Printing
South Lakeland District Council,http://opendatacommunities.org/id/district-council/south-lakeland,31/12/2017,Electoral Services,Central Services,http://opendatacommunities.org/def/concept/finance/sercop/objective/102,SCI PRINT LTD,,04/12/2017,73345,469.77,0,ITR's 14 November,191600,Facilities Printing
South Lakeland District Council,http://opendatacommunities.org/id/district-council/south-lakeland,31/12/2017,Electoral Services,Central Services,http://opendatacommunities.org/def/concept/finance/sercop/objective/102,SCI PRINT LTD,,04/12/2017,73346,788.3,0,ITR's 20 November,191600,Facilities Printing
South Lakeland District Council,http://opendatacommunities.org/id/district-council/south-lakeland,31/12/2017,Social Enterprise Admin,Cultural Environmental Regulatory & Planning Services,http://opendatacommunities.org/def/concept/finance/sercop/objective/104,NEWSQUEST MEDIA GROUP LTD,3102566,11/12/2017,73347,161.28,0,PUBLIC NOTICES FOR PLANNING 1 APRIL - 31,191000,Facilities Advertising
South Lakeland District Council,http://opendatacommunities.org/id/district-council/south-lakeland,31/12/2017,Democratic Services,Central Services,http://opendatacommunities.org/def/concept/finance/sercop/objective/102,NEWSQUEST MEDIA GROUP LTD,3102566,04/12/2017,73348,756,0,Public Notice of the recommended,191000,Facilities Advertising
South Lakeland District Council,http://opendatacommunities.org/id/district-council/south-lakeland,31/12/2017,Legal Services,Central Services,http://opendatacommunities.org/def/concept/finance/sercop/objective/102,NEWSQUEST MEDIA GROUP LTD,3102566,11/12/2017,73349,161.28,0,Advert re: Road Closure -  Kirkby,191000,Facilities Advertising
South Lakeland District Council,http://opendatacommunities.org/id/district-council/south-lakeland,31/12/2017,Social Enterprise Admin,Culture and Related Serv,http://opendatacommunities.org/def/concept/finance/sercop/objective/104,Spatial Data Limited,2665651,11/12/2017,73355,300,0,Topographical survey for additional,391314,Construction Open Spaces Surveys
South Lakeland District Council,http://opendatacommunities.org/id/district-council/south-lakeland,31/12/2017,Leisure and Wellbeing,Cultural Environmental Regulatory & Planning Services,http://opendatacommunities.org/def/concept/finance/sercop/objective/104,J S Cleaning Services,,04/12/2017,73356,75,0,for the weekly cleaning of the chapel,131010,Cleaning & Janitorial Cleaning Materials
South Lakeland District Council,http://opendatacommunities.org/id/district-council/south-lakeland,31/12/2017,Business Support Community Services,Cultural Environmental Regulatory & Planning Services,http://opendatacommunities.org/def/concept/finance/sercop/objective/104,UNITED UTILITIES WATER PLC,2366678,11/12/2017,73359,1921.94,0,Private Water Analysis - October 2017,371300,Utilities Water
South Lakeland District Council,http://opendatacommunities.org/id/district-council/south-lakeland,31/12/2017,Leisure and Wellbeing,Cultural Environmental Regulatory & Planning Services,http://opendatacommunities.org/def/concept/finance/sercop/objective/104,SOUTH LAKES TREE SURGEONS & LANDSCAPES,5342745,06/12/2017,73360,260,0,"Remove the tree at Priory Road,",241210,Horticultural Tree Trimming
South Lakeland District Council,http://opendatacommunities.org/id/district-council/south-lakeland,31/12/2017,Printing Section,Central Services,http://opendatacommunities.org/def/concept/finance/sercop/objective/102,Konica Minolta Bus Solutions (UK) Ltd,,11/12/2017,73361,68.65,0,Qurterly rentals for Market Office,192000,Facilities Reprographics
South Lakeland District Council,http://opendatacommunities.org/id/district-council/south-lakeland,31/12/2017,Printing Section,Central Services,http://opendatacommunities.org/def/concept/finance/sercop/objective/102,PRESCO UK LTD,5923806,11/12/2017,73362,67.72,0,3/8th Silver wires box of 100,191600,Facilities Printing
South Lakeland District Council,http://opendatacommunities.org/id/district-council/south-lakeland,31/12/2017,Business Support Community Services,Internal Trading Accounts,,Staveley Village Association,,04/12/2017,73363,20,0,Memorial Hall booking 01/09/17,201700,Financial Services Grants
South Lakeland District Council,http://opendatacommunities.org/id/district-council/south-lakeland,31/12/2017,Business Support Community Services,Internal Trading Accounts,,COMPASS COMPONENTS,,04/12/2017,73364,104.45,0,Consumables 01/04/17 - 31/03/18,101400,Building General Materials
South Lakeland District Council,http://opendatacommunities.org/id/district-council/south-lakeland,31/12/2017,Business Support Community Services,Internal Trading Accounts,,RIBBLESDALE AUTO ELECTRICS 1992 LTD,2732686,04/12/2017,73365,45.29,0,Batteries,381500,Vehicle Mgt Parts
South Lakeland District Council,http://opendatacommunities.org/id/district-council/south-lakeland,31/12/2017,Lake Wardens,Cultural Environmental Regulatory & Planning Services,http://opendatacommunities.org/def/concept/finance/sercop/objective/104,Walcon Marine Ltd,1143519,04/12/2017,73366,204.4,0,10no. 144mm x 21mm deckboards cut to 2,907999,Marine Not Elsewhere Classified
South Lakeland District Council,http://opendatacommunities.org/id/district-council/south-lakeland,31/12/2017,Lake Wardens,Cultural Environmental Regulatory & Planning Services,http://opendatacommunities.org/def/concept/finance/sercop/objective/104,VODAFONE LIMITED,1471587,06/12/2017,73367,97.92,0,4 x Rental for Lake Wardens Emergency,271800,ICT Telecommunications Mobile
South Lakeland District Council,http://opendatacommunities.org/id/district-council/south-lakeland,31/12/2017,Lake Wardens,Cultural Environmental Regulatory & Planning Services,http://opendatacommunities.org/def/concept/finance/sercop/objective/104,SHORROCK TRICHEM,4179799,04/12/2017,73368,82.24,0,2 x 5 Litres of Bleach,131312,Cleaning & Janitorial Washroom Sanitat
South Lakeland District Council,http://opendatacommunities.org/id/district-council/south-lakeland,31/12/2017,Lake Wardens,Cultural Environmental Regulatory & Planning Services,http://opendatacommunities.org/def/concept/finance/sercop/objective/104,Harry Park Tyres Ltd,8131208,04/12/2017,73369,235,0,4 x Tyres for Indespension Trailer,381500,Vehicle Mgt Parts
South Lakeland District Council,http://opendatacommunities.org/id/district-council/south-lakeland,31/12/2017,Development Implementation,External Trading Accounts,,COLIN BRISCOE CONSTRUCTION LTD,2884282,04/12/2017,73370,6697.55,0,"Bollards, Boulders & Planters for New",191700,Facilities Property Management
South Lakeland District Council,http://opendatacommunities.org/id/district-council/south-lakeland,31/12/2017,Development Implementation,SLDC as Agent,,KENDAL TOWN COUNCIL,,04/12/2017,73371,1500,0,Cumbria Tourism Holiday Guide Advert,908000,Public Bodies Council support services
South Lakeland District Council,http://opendatacommunities.org/id/district-council/south-lakeland,31/12/2017,Development Implementation,Central Services,http://opendatacommunities.org/def/concept/finance/sercop/objective/102,LAMBERT SMITH HAMPTON GROUP,2521225,04/12/2017,73372,210,0,Encroachments for Lake District Estates,999999,Unclassifiable
South Lakeland District Council,http://opendatacommunities.org/id/district-council/south-lakeland,31/12/2017,Financial Services,Central Services,http://opendatacommunities.org/def/concept/finance/sercop/objective/102,NEWSQUEST MEDIA GROUP LTD,3102566,04/12/2017,73373,208.57,0,Quarter Page advert for New Road Public,191000,Facilities Advertising
South Lakeland District Council,http://opendatacommunities.org/id/district-council/south-lakeland,31/12/2017,Business Support Community Services,Housing Services,http://opendatacommunities.org/def/concept/finance/sercop/objective/108,Landlord,,04/12/2017,73377,280,0,Reimbursement of costs for 8 White Moss,250000,Housing
South Lakeland District Council,http://opendatacommunities.org/id/district-council/south-lakeland,31/12/2017,Development Implementation,Central Services,http://opendatacommunities.org/def/concept/finance/sercop/objective/102,CUMBRIA COUNTY COUNCIL,,06/12/2017,73379,13033.18,0,Public Sector Hub - commissioning of 5,908000,Public Bodies Council support services
South Lakeland District Council,http://opendatacommunities.org/id/district-council/south-lakeland,31/12/2017,Environment and Housing,Housing,http://opendatacommunities.org/def/concept/finance/sercop/objective/108,ENVIRONMENT & HOUSING GRANTS,,04/12/2017,73380,9508.24,0,"First Floor, 1-7 New Market Street,",201700,Financial Services Grants
South Lakeland District Council,http://opendatacommunities.org/id/district-council/south-lakeland,31/12/2017,Development Management,Cultural Environmental Regulatory & Planning Services,http://opendatacommunities.org/def/concept/finance/sercop/objective/104,M & P Gadsden Ltd,,06/12/2017,73387,45,0,Checking of Structural Calculations,391000,Construction Architect
South Lakeland District Council,http://opendatacommunities.org/id/district-council/south-lakeland,31/12/2017,Human Resources,Housing Services,http://opendatacommunities.org/def/concept/finance/sercop/objective/108,TOTAL JOBS GROUP,0808 168 5261,06/12/2017,73390,500,0,Hostel Support Officer - Temp 2,261300,HR Recruitment & Assessment
South Lakeland District Council,http://opendatacommunities.org/id/district-council/south-lakeland,31/12/2017,Human Resources,Central Services,http://opendatacommunities.org/def/concept/finance/sercop/objective/102,KSL Consulting,5390546,11/12/2017,73391,1086.8,0,Training course delivery of 1 day @,261520,Human Resources Training
South Lakeland District Council,http://opendatacommunities.org/id/district-council/south-lakeland,31/12/2017,Business Support Community Services,Internal Trading Accounts,,ADECCO UK LIMITED,593232,06/12/2017,73392,354.78,0,Agency staff 2017/18,261400,HR Temporary & Agency Staff
South Lakeland District Council,http://opendatacommunities.org/id/district-council/south-lakeland,31/12/2017,Business Support Community Services,Central Services,http://opendatacommunities.org/def/concept/finance/sercop/objective/102,ADECCO UK LIMITED,593232,11/12/2017,73395,513.92,0,PAI TECHNICIAN FROM 20/11/2017,261400,HR Temporary & Agency Staff
South Lakeland District Council,http://opendatacommunities.org/id/district-council/south-lakeland,31/12/2017,Lake Wardens,Cultural Environmental Regulatory & Planning Services,http://opendatacommunities.org/def/concept/finance/sercop/objective/104,RICKERBY LTD,4985069,06/12/2017,73396,34.74,0,1 x Amber Rotating Warning Beacon,381000,Vehicle Mgt Commercial
South Lakeland District Council,http://opendatacommunities.org/id/district-council/south-lakeland,31/12/2017,Leisure and Wellbeing,Highways & Transport Services,http://opendatacommunities.org/def/concept/finance/sercop/objective/107,CONTINENTAL LANDSCAPES LTD,2108452,06/12/2017,73397,2.66,0,Parks Routine Maintenance extra payment,391310,Construction Open Spaces Construction
South Lakeland District Council,http://opendatacommunities.org/id/district-council/south-lakeland,31/12/2017,Leisure and Wellbeing,Highways & Transport Services,http://opendatacommunities.org/def/concept/finance/sercop/objective/107,CONTINENTAL LANDSCAPES LTD,2108452,06/12/2017,73397,26.56,0,Parks Routine Maintenance extra payment,391310,Construction Open Spaces Construction
South Lakeland District Council,http://opendatacommunities.org/id/district-council/south-lakeland,31/12/2017,Leisure and Wellbeing,Highways & Transport Services,http://opendatacommunities.org/def/concept/finance/sercop/objective/107,CONTINENTAL LANDSCAPES LTD,2108452,06/12/2017,73397,0.27,0,Parks Routine Maintenance extra payment,391310,Construction Open Spaces Construction
South Lakeland District Council,http://opendatacommunities.org/id/district-council/south-lakeland,31/12/2017,Leisure and Wellbeing,Highways & Transport Services,http://opendatacommunities.org/def/concept/finance/sercop/objective/107,CONTINENTAL LANDSCAPES LTD,2108452,06/12/2017,73397,2.66,0,Parks Routine Maintenance extra payment,391310,Construction Open Spaces Construction
South Lakeland District Council,http://opendatacommunities.org/id/district-council/south-lakeland,31/12/2017,Leisure and Wellbeing,Highways & Transport Services,http://opendatacommunities.org/def/concept/finance/sercop/objective/107,CONTINENTAL LANDSCAPES LTD,2108452,06/12/2017,73397,26.56,0,Parks Routine Maintenance extra payment,391310,Construction Open Spaces Construction
South Lakeland District Council,http://opendatacommunities.org/id/district-council/south-lakeland,31/12/2017,Leisure and Wellbeing,Highways & Transport Services,http://opendatacommunities.org/def/concept/finance/sercop/objective/107,CONTINENTAL LANDSCAPES LTD,2108452,06/12/2017,73397,2.66,0,Parks Routine Maintenance extra payment,391310,Construction Open Spaces Construction
South Lakeland District Council,http://opendatacommunities.org/id/district-council/south-lakeland,31/12/2017,Leisure and Wellbeing,Highways & Transport Services,http://opendatacommunities.org/def/concept/finance/sercop/objective/107,CONTINENTAL LANDSCAPES LTD,2108452,06/12/2017,73397,5.31,0,Parks Routine Maintenance extra payment,391310,Construction Open Spaces Construction
South Lakeland District Council,http://opendatacommunities.org/id/district-council/south-lakeland,31/12/2017,Leisure and Wellbeing,Highways & Transport Services,http://opendatacommunities.org/def/concept/finance/sercop/objective/107,CONTINENTAL LANDSCAPES LTD,2108452,06/12/2017,73397,3.32,0,Parks Routine Maintenance extra payment,391310,Construction Open Spaces Construction
South Lakeland District Council,http://opendatacommunities.org/id/district-council/south-lakeland,31/12/2017,Leisure and Wellbeing,Highways & Transport Services,http://opendatacommunities.org/def/concept/finance/sercop/objective/107,CONTINENTAL LANDSCAPES LTD,2108452,06/12/2017,73397,33.2,0,Parks Routine Maintenance extra payment,391310,Construction Open Spaces Construction
South Lakeland District Council,http://opendatacommunities.org/id/district-council/south-lakeland,31/12/2017,Leisure and Wellbeing,Highways & Transport Services,http://opendatacommunities.org/def/concept/finance/sercop/objective/107,CONTINENTAL LANDSCAPES LTD,2108452,06/12/2017,73397,1.33,0,Parks Routine Maintenance extra payment,391310,Construction Open Spaces Construction
South Lakeland District Council,http://opendatacommunities.org/id/district-council/south-lakeland,31/12/2017,Leisure and Wellbeing,Highways & Transport Services,http://opendatacommunities.org/def/concept/finance/sercop/objective/107,CONTINENTAL LANDSCAPES LTD,2108452,06/12/2017,73397,13.28,0,Parks Routine Maintenance extra payment,391310,Construction Open Spaces Construction
South Lakeland District Council,http://opendatacommunities.org/id/district-council/south-lakeland,31/12/2017,Leisure and Wellbeing,Highways & Transport Services,http://opendatacommunities.org/def/concept/finance/sercop/objective/107,CONTINENTAL LANDSCAPES LTD,2108452,06/12/2017,73397,5.31,0,Parks Routine Maintenance extra payment,391310,Construction Open Spaces Construction
South Lakeland District Council,http://opendatacommunities.org/id/district-council/south-lakeland,31/12/2017,Leisure and Wellbeing,Highways & Transport Services,http://opendatacommunities.org/def/concept/finance/sercop/objective/107,CONTINENTAL LANDSCAPES LTD,2108452,06/12/2017,73397,1.33,0,Parks Routine Maintenance extra payment,391310,Construction Open Spaces Construction
South Lakeland District Council,http://opendatacommunities.org/id/district-council/south-lakeland,31/12/2017,Leisure and Wellbeing,Highways & Transport Services,http://opendatacommunities.org/def/concept/finance/sercop/objective/107,CONTINENTAL LANDSCAPES LTD,2108452,06/12/2017,73397,0.86,0,Parks Routine Maintenance extra payment,391310,Construction Open Spaces Construction
South Lakeland District Council,http://opendatacommunities.org/id/district-council/south-lakeland,31/12/2017,Leisure and Wellbeing,Highways & Transport Services,http://opendatacommunities.org/def/concept/finance/sercop/objective/107,CONTINENTAL LANDSCAPES LTD,2108452,06/12/2017,73397,1.33,0,Parks Routine Maintenance extra payment,391310,Construction Open Spaces Construction
South Lakeland District Council,http://opendatacommunities.org/id/district-council/south-lakeland,31/12/2017,Leisure and Wellbeing,Highways & Transport Services,http://opendatacommunities.org/def/concept/finance/sercop/objective/107,CONTINENTAL LANDSCAPES LTD,2108452,06/12/2017,73397,15.93,0,Parks Routine Maintenance extra payment,391310,Construction Open Spaces Construction
South Lakeland District Council,http://opendatacommunities.org/id/district-council/south-lakeland,31/12/2017,Leisure and Wellbeing,Highways & Transport Services,http://opendatacommunities.org/def/concept/finance/sercop/objective/107,CONTINENTAL LANDSCAPES LTD,2108452,06/12/2017,73397,0.66,0,Parks Routine Maintenance extra payment,391310,Construction Open Spaces Construction
South Lakeland District Council,http://opendatacommunities.org/id/district-council/south-lakeland,31/12/2017,Leisure and Wellbeing,Highways & Transport Services,http://opendatacommunities.org/def/concept/finance/sercop/objective/107,CONTINENTAL LANDSCAPES LTD,2108452,06/12/2017,73397,1.2,0,Parks Routine Maintenance extra payment,391310,Construction Open Spaces Construction
South Lakeland District Council,http://opendatacommunities.org/id/district-council/south-lakeland,31/12/2017,Leisure and Wellbeing,Highways & Transport Services,http://opendatacommunities.org/def/concept/finance/sercop/objective/107,CONTINENTAL LANDSCAPES LTD,2108452,06/12/2017,73397,1.33,0,Parks Routine Maintenance extra payment,391310,Construction Open Spaces Construction
South Lakeland District Council,http://opendatacommunities.org/id/district-council/south-lakeland,31/12/2017,Leisure and Wellbeing,Highways & Transport Services,http://opendatacommunities.org/def/concept/finance/sercop/objective/107,CONTINENTAL LANDSCAPES LTD,2108452,06/12/2017,73397,14.61,0,Parks Routine Maintenance extra payment,391310,Construction Open Spaces Construction
South Lakeland District Council,http://opendatacommunities.org/id/district-council/south-lakeland,31/12/2017,Leisure and Wellbeing,Highways & Transport Services,http://opendatacommunities.org/def/concept/finance/sercop/objective/107,CONTINENTAL LANDSCAPES LTD,2108452,06/12/2017,73397,27.88,0,Parks Routine Maintenance extra payment,391310,Construction Open Spaces Construction
South Lakeland District Council,http://opendatacommunities.org/id/district-council/south-lakeland,31/12/2017,Leisure and Wellbeing,Highways & Transport Services,http://opendatacommunities.org/def/concept/finance/sercop/objective/107,CONTINENTAL LANDSCAPES LTD,2108452,06/12/2017,73397,1.33,0,Parks Routine Maintenance extra payment,391310,Construction Open Spaces Construction
South Lakeland District Council,http://opendatacommunities.org/id/district-council/south-lakeland,31/12/2017,Leisure and Wellbeing,Highways & Transport Services,http://opendatacommunities.org/def/concept/finance/sercop/objective/107,CONTINENTAL LANDSCAPES LTD,2108452,06/12/2017,73397,2.66,0,Parks Routine Maintenance extra payment,391310,Construction Open Spaces Construction
South Lakeland District Council,http://opendatacommunities.org/id/district-council/south-lakeland,31/12/2017,Leisure and Wellbeing,Highways & Transport Services,http://opendatacommunities.org/def/concept/finance/sercop/objective/107,CONTINENTAL LANDSCAPES LTD,2108452,06/12/2017,73397,2.66,0,Parks Routine Maintenance extra payment,391310,Construction Open Spaces Construction
South Lakeland District Council,http://opendatacommunities.org/id/district-council/south-lakeland,31/12/2017,Leisure and Wellbeing,Highways & Transport Services,http://opendatacommunities.org/def/concept/finance/sercop/objective/107,CONTINENTAL LANDSCAPES LTD,2108452,06/12/2017,73397,39.83,0,Parks Routine Maintenance extra payment,391310,Construction Open Spaces Construction
South Lakeland District Council,http://opendatacommunities.org/id/district-council/south-lakeland,31/12/2017,Leisure and Wellbeing,Highways & Transport Services,http://opendatacommunities.org/def/concept/finance/sercop/objective/107,CONTINENTAL LANDSCAPES LTD,2108452,06/12/2017,73397,1.33,0,Parks Routine Maintenance extra payment,391310,Construction Open Spaces Construction
South Lakeland District Council,http://opendatacommunities.org/id/district-council/south-lakeland,31/12/2017,Leisure and Wellbeing,Highways & Transport Services,http://opendatacommunities.org/def/concept/finance/sercop/objective/107,CONTINENTAL LANDSCAPES LTD,2108452,06/12/2017,73397,11.95,0,Parks Routine Maintenance extra payment,391310,Construction Open Spaces Construction
South Lakeland District Council,http://opendatacommunities.org/id/district-council/south-lakeland,31/12/2017,Leisure and Wellbeing,Highways & Transport Services,http://opendatacommunities.org/def/concept/finance/sercop/objective/107,CONTINENTAL LANDSCAPES LTD,2108452,06/12/2017,73397,2.66,0,Parks Routine Maintenance extra payment,391310,Construction Open Spaces Construction
South Lakeland District Council,http://opendatacommunities.org/id/district-council/south-lakeland,31/12/2017,Leisure and Wellbeing,Highways & Transport Services,http://opendatacommunities.org/def/concept/finance/sercop/objective/107,CONTINENTAL LANDSCAPES LTD,2108452,06/12/2017,73397,5.31,0,Parks Routine Maintenance extra payment,391310,Construction Open Spaces Construction
South Lakeland District Council,http://opendatacommunities.org/id/district-council/south-lakeland,31/12/2017,Leisure and Wellbeing,Highways & Transport Services,http://opendatacommunities.org/def/concept/finance/sercop/objective/107,CONTINENTAL LANDSCAPES LTD,2108452,06/12/2017,73397,3.73,0,Parks Routine Maintenance extra payment,391310,Construction Open Spaces Construction
South Lakeland District Council,http://opendatacommunities.org/id/district-council/south-lakeland,31/12/2017,Leisure and Wellbeing,Highways & Transport Services,http://opendatacommunities.org/def/concept/finance/sercop/objective/107,CONTINENTAL LANDSCAPES LTD,2108452,06/12/2017,73397,3.9,0,Parks Routine Maintenance extra payment,391310,Construction Open Spaces Construction
South Lakeland District Council,http://opendatacommunities.org/id/district-council/south-lakeland,31/12/2017,Leisure and Wellbeing,Cultural Environmental Regulatory & Planning Services,http://opendatacommunities.org/def/concept/finance/sercop/objective/104,CONTINENTAL LANDSCAPES LTD,2108452,06/12/2017,73397,2124.51,0,Parks Routine Maintenance extra payment,391310,Construction Open Spaces Construction
South Lakeland District Council,http://opendatacommunities.org/id/district-council/south-lakeland,31/12/2017,Leisure and Wellbeing,Cultural Environmental Regulatory & Planning Services,http://opendatacommunities.org/def/concept/finance/sercop/objective/104,CONTINENTAL LANDSCAPES LTD,2108452,06/12/2017,73397,9634.6,0,Parks Routine Maintenance extra payment,391310,Construction Open Spaces Construction
South Lakeland District Council,http://opendatacommunities.org/id/district-council/south-lakeland,31/12/2017,Leisure and Wellbeing,Cultural Environmental Regulatory & Planning Services,http://opendatacommunities.org/def/concept/finance/sercop/objective/104,CONTINENTAL LANDSCAPES LTD,2108452,06/12/2017,73397,106.23,0,Parks Routine Maintenance extra payment,391310,Construction Open Spaces Construction
South Lakeland District Council,http://opendatacommunities.org/id/district-council/south-lakeland,31/12/2017,Leisure and Wellbeing,Cultural Environmental Regulatory & Planning Services,http://opendatacommunities.org/def/concept/finance/sercop/objective/104,CONTINENTAL LANDSCAPES LTD,2108452,06/12/2017,73397,313.54,0,Parks Routine Maintenance extra payment,391310,Construction Open Spaces Construction
South Lakeland District Council,http://opendatacommunities.org/id/district-council/south-lakeland,31/12/2017,Cemeteries Office,Cultural Environmental Regulatory & Planning Services,http://opendatacommunities.org/def/concept/finance/sercop/objective/104,CONTINENTAL LANDSCAPES LTD,2108452,20/12/2017,73398,2970,0,Remove cemetery spoil:,391310,Construction Open Spaces Construction
South Lakeland District Council,http://opendatacommunities.org/id/district-council/south-lakeland,31/12/2017,Leisure and Wellbeing,Cultural Environmental Regulatory & Planning Services,http://opendatacommunities.org/def/concept/finance/sercop/objective/104,CONTINENTAL LANDSCAPES LTD,2108452,06/12/2017,73399,533,0,Grave digging April - October,391310,Construction Open Spaces Construction
South Lakeland District Council,http://opendatacommunities.org/id/district-council/south-lakeland,31/12/2017,Legal Services,Cultural Environmental Regulatory & Planning Services,http://opendatacommunities.org/def/concept/finance/sercop/objective/104,ANTHONY COLLINS SOLICITORS,OC313432,18/12/2017,73400,971.5,0,Fees re:  Bring-Site Contract (Street,281300,Legal Services Legal Opinion
South Lakeland District Council,http://opendatacommunities.org/id/district-council/south-lakeland,31/12/2017,Democratic and Member Services,Central Services,http://opendatacommunities.org/def/concept/finance/sercop/objective/102,Teamstrides Ltd,8362924,06/12/2017,73401,187.95,0,100 lapel badges for Members,141300,Clothing Uniforms
South Lakeland District Council,http://opendatacommunities.org/id/district-council/south-lakeland,31/12/2017,Leisure and Wellbeing,Cultural Environmental Regulatory & Planning Services,http://opendatacommunities.org/def/concept/finance/sercop/objective/104,CONTINENTAL LANDSCAPES LTD,2108452,06/12/2017,73402,1299.58,0,Cemetery adjustments for November 2017,391310,Construction Open Spaces Construction
South Lakeland District Council,http://opendatacommunities.org/id/district-council/south-lakeland,31/12/2017,Leisure and Wellbeing,Cultural Environmental Regulatory & Planning Services,http://opendatacommunities.org/def/concept/finance/sercop/objective/104,CONTINENTAL LANDSCAPES LTD,2108452,06/12/2017,73403,1856,0,Play Area Inspections from 21st June,391310,Construction Open Spaces Construction
South Lakeland District Council,http://opendatacommunities.org/id/district-council/south-lakeland,31/12/2017,Business Support Community Services,Internal Trading Accounts,,ARCO LIMITED,133804,06/12/2017,73405,238.95,0,Cleaning materials,141100,Clothing Protective
South Lakeland District Council,http://opendatacommunities.org/id/district-council/south-lakeland,31/12/2017,Business Support Community Services,Internal Trading Accounts,,PIER 1 METALWORKS LTD,4291520,11/12/2017,73406,525,0,Hand rails,391200,Construction Engineering
South Lakeland District Council,http://opendatacommunities.org/id/district-council/south-lakeland,31/12/2017,Business Support Community Services,Internal Trading Accounts,,TAYLOR ENGINEERING & FABRICATIONS LTD,4989359,06/12/2017,73407,182.77,0,Parts,391200,Construction Engineering
South Lakeland District Council,http://opendatacommunities.org/id/district-council/south-lakeland,31/12/2017,Business Support Community Services,Internal Trading Accounts,,BRIAN ARMISTEAD LTD T/A SINKFALL RECYCLI,4133280,06/12/2017,73408,30,0,Green waste tipping - 2017/18,391110,Construction Buildings Construction
South Lakeland District Council,http://opendatacommunities.org/id/district-council/south-lakeland,31/12/2017,Business Support Community Services,Central Services,http://opendatacommunities.org/def/concept/finance/sercop/objective/102,Masterstaff Limited,2777593,06/12/2017,73409,134.55,0,Agency staff 2017/18,261300,HR Recruitment & Assessment
South Lakeland District Council,http://opendatacommunities.org/id/district-council/south-lakeland,31/12/2017,Business Support Community Services,Internal Trading Accounts,,Masterstaff Limited,2777593,06/12/2017,73409,4857.45,0,Agency staff 2017/18,261300,HR Recruitment & Assessment
South Lakeland District Council,http://opendatacommunities.org/id/district-council/south-lakeland,31/12/2017,Business Support Community Services,Central Services,http://opendatacommunities.org/def/concept/finance/sercop/objective/102,LANCASTER TRAINING SERVICES LTD,1447612,06/12/2017,73410,285.5,0,Training 2017/18 (SWK),261500,HR Training & Conferences
South Lakeland District Council,http://opendatacommunities.org/id/district-council/south-lakeland,31/12/2017,Business Support Community Services,Internal Trading Accounts,,EK MOTOR FACTORS LTD,838524,06/12/2017,73411,100,0,Parts,381400,Vehicle Mgt Maintenance
South Lakeland District Council,http://opendatacommunities.org/id/district-council/south-lakeland,31/12/2017,Business Support Community Services,Internal Trading Accounts,,EK MOTOR FACTORS LTD,838524,06/12/2017,73412,102.72,0,Parts,381400,Vehicle Mgt Maintenance
South Lakeland District Council,http://opendatacommunities.org/id/district-council/south-lakeland,31/12/2017,Business Support Community Services,Internal Trading Accounts,,Electro- Cal Ltd,3620239,06/12/2017,73413,58.49,0,Repair extension,381200,Vehicle Mgt Heavy Constr Equip Leasing
South Lakeland District Council,http://opendatacommunities.org/id/district-council/south-lakeland,31/12/2017,Business Support Community Services,Internal Trading Accounts,,EK MOTOR FACTORS LTD,838524,06/12/2017,73414,5.95,0,Parts,381400,Vehicle Mgt Maintenance
South Lakeland District Council,http://opendatacommunities.org/id/district-council/south-lakeland,31/12/2017,Business Support Community Services,Internal Trading Accounts,,DRIVELINE & HYDRAULIC ENGINEERING LTD,5527968,11/12/2017,73415,199.13,0,Bearing,391200,Construction Engineering
South Lakeland District Council,http://opendatacommunities.org/id/district-council/south-lakeland,31/12/2017,Business Support Community Services,Internal Trading Accounts,,EK MOTOR FACTORS LTD,838524,06/12/2017,73416,15.38,0,Parts,381400,Vehicle Mgt Maintenance
South Lakeland District Council,http://opendatacommunities.org/id/district-council/south-lakeland,31/12/2017,Transport,Internal Trading Accounts,,AINSWORTH'S GARAGE,,06/12/2017,73417,163.75,0,Recover SL032,381400,Vehicle Mgt Maintenance
South Lakeland District Council,http://opendatacommunities.org/id/district-council/south-lakeland,31/12/2017,Business Support Community Services,Internal Trading Accounts,,EK MOTOR FACTORS LTD,838524,06/12/2017,73418,245.98,0,Parts,381400,Vehicle Mgt Maintenance
South Lakeland District Council,http://opendatacommunities.org/id/district-council/south-lakeland,31/12/2017,Business Support Community Services,Internal Trading Accounts,,BRIAN ARMISTEAD LTD T/A SINKFALL RECYCLI,4133280,06/12/2017,73419,1228.36,0,Green waste tipping - 2017/18,391110,Construction Buildings Construction
South Lakeland District Council,http://opendatacommunities.org/id/district-council/south-lakeland,31/12/2017,Business Support Community Services,Cultural Environmental Regulatory & Planning Services,http://opendatacommunities.org/def/concept/finance/sercop/objective/104,CANNON HYGIENE LTD,1298292,06/12/2017,73420,2371.2,0,Clinical waste collections - 2017/18,131011,Cleaning & Janitorial Cleaning Materials
South Lakeland District Council,http://opendatacommunities.org/id/district-council/south-lakeland,31/12/2017,Business Support Community Services,Cultural Environmental Regulatory & Planning Services,http://opendatacommunities.org/def/concept/finance/sercop/objective/104,MILNTHORPE KENNELS & CATTERY,8932302,06/12/2017,73421,2633.93,0,Kennelling fees 2017/18,181500,Environment Animal Services
South Lakeland District Council,http://opendatacommunities.org/id/district-council/south-lakeland,31/12/2017,Business Support Community Services,Housing Services,http://opendatacommunities.org/def/concept/finance/sercop/objective/108,SOUTH LAKES HOUSING RENT A/C,,06/12/2017,73424,98.92,0,Rent in advance 94 Hallgarth Circle,191700,Facilities Property Management
South Lakeland District Council,http://opendatacommunities.org/id/district-council/south-lakeland,31/12/2017,Business Support Community Services,Housing Services,http://opendatacommunities.org/def/concept/finance/sercop/objective/108,Landlord,,06/12/2017,73425,63.48,0,Reimbursement of Starter Pack costs for,102100,Building Paint & Finishing
South Lakeland District Council,http://opendatacommunities.org/id/district-council/south-lakeland,31/12/2017,Business Support Community Services,Housing Services,http://opendatacommunities.org/def/concept/finance/sercop/objective/108,STEELES REMOVALS LTD,3082686,06/12/2017,73426,450,0,Removal into storage,191900,Facilities Removals
South Lakeland District Council,http://opendatacommunities.org/id/district-council/south-lakeland,31/12/2017,Business Support Community Services,Transport Planning Policy,http://opendatacommunities.org/def/concept/finance/sercop/objective/107,ARCO LIMITED,133804,18/12/2017,73427,1610.12,0,Cleaning materials,141100,Clothing Protective
South Lakeland District Council,http://opendatacommunities.org/id/district-council/south-lakeland,31/12/2017,Business Support Community Services,Internal Trading Accounts,,ARCO LIMITED,133804,13/12/2017,73428,51.97,0,Cleaning materials,141100,Clothing Protective
South Lakeland District Council,http://opendatacommunities.org/id/district-council/south-lakeland,31/12/2017,Business Support Community Services,Cultural Environmental Regulatory & Planning Services,http://opendatacommunities.org/def/concept/finance/sercop/objective/104,J R B ENTERPRISE,,18/12/2017,73429,1023.6,0,"50,000 bags @ 17.06 per 1,000",182011,Environment Waste Management Consumables
South Lakeland District Council,http://opendatacommunities.org/id/district-council/south-lakeland,31/12/2017,Business Support Community Services,Internal Trading Accounts,,A & W COMMERCIALS LTD,2630625,13/12/2017,73430,139.08,0,Hose,381400,Vehicle Mgt Maintenance
South Lakeland District Council,http://opendatacommunities.org/id/district-council/south-lakeland,31/12/2017,Business Support Community Services,Internal Trading Accounts,,Southfield Garage,,13/12/2017,73431,340,0,Repair SL033,380000,Vehicle Management
South Lakeland District Council,http://opendatacommunities.org/id/district-council/south-lakeland,31/12/2017,Business Support Community Services,Internal Trading Accounts,,FURNESS FLUID POWER LTD,5675728,13/12/2017,73432,64.53,0,Repair SL020,260000,HR
South Lakeland District Council,http://opendatacommunities.org/id/district-council/south-lakeland,31/12/2017,Business Support Community Services,Internal Trading Accounts,,AINSWORTH'S GARAGE,,13/12/2017,73434,212.5,0,Recover SL062,381400,Vehicle Mgt Maintenance
South Lakeland District Council,http://opendatacommunities.org/id/district-council/south-lakeland,31/12/2017,Business Support Community Services,Internal Trading Accounts,,AINSWORTH'S GARAGE,,13/12/2017,73436,360,0,Recover SL062,381400,Vehicle Mgt Maintenance
South Lakeland District Council,http://opendatacommunities.org/id/district-council/south-lakeland,31/12/2017,Transport,Internal Trading Accounts,,GARWOOD EUROPE LTD,4333504,13/12/2017,73438,160.46,0,Parts (36076),182011,Environment Waste Management Consumables
South Lakeland District Council,http://opendatacommunities.org/id/district-council/south-lakeland,31/12/2017,Business Support Community Services,Internal Trading Accounts,,ARCO LIMITED,133804,13/12/2017,73440,266.4,0,Cleaning materials,141100,Clothing Protective
South Lakeland District Council,http://opendatacommunities.org/id/district-council/south-lakeland,31/12/2017,Kendal Town Hall,Cultural Environmental Regulatory & Planning Services,http://opendatacommunities.org/def/concept/finance/sercop/objective/104,FARRERS,9023215,06/12/2017,73444,49.68,0,4 boxes of Lakeland Special Tea for KTH,111200,Catering Food & Beverages
South Lakeland District Council,http://opendatacommunities.org/id/district-council/south-lakeland,31/12/2017,Kendal Town Hall,External Trading Accounts,,PHONOGRAPHIC PERFORMANCE LIMITED,288046,06/12/2017,73445,147.35,0,Annual phonographic licence for Kendal,202100,Financial Services Subscriptions
South Lakeland District Council,http://opendatacommunities.org/id/district-council/south-lakeland,31/12/2017,Kendal Town Hall,Cultural Environmental Regulatory & Planning Services,http://opendatacommunities.org/def/concept/finance/sercop/objective/104,PHONOGRAPHIC PERFORMANCE LIMITED,288046,06/12/2017,73445,250,0,Annual phonographic licence for Kendal,202100,Financial Services Subscriptions
South Lakeland District Council,http://opendatacommunities.org/id/district-council/south-lakeland,31/12/2017,Development Implementation,Central Services,http://opendatacommunities.org/def/concept/finance/sercop/objective/102,THOMAS GRAHAM & SONS LTD,656879,11/12/2017,73447,413.14,0,C Fold Paper Hand Towels Blue 1ply - 3,101400,Building General Materials
South Lakeland District Council,http://opendatacommunities.org/id/district-council/south-lakeland,31/12/2017,Social Enterprise Admin,Highways & Transport Services,http://opendatacommunities.org/def/concept/finance/sercop/objective/107,THOMAS GRAHAM & SONS LTD,656879,06/12/2017,73448,35.74,0,Jangro H Towels Green Product Code  AE,101400,Building General Materials
South Lakeland District Council,http://opendatacommunities.org/id/district-council/south-lakeland,31/12/2017,Development Implementation,Cultural Environmental Regulatory & Planning Services,http://opendatacommunities.org/def/concept/finance/sercop/objective/104,THOMAS GRAHAM & SONS LTD,656879,11/12/2017,73449,40.98,0,Supply of 6 packs of Toilet Roll for,101400,Building General Materials
South Lakeland District Council,http://opendatacommunities.org/id/district-council/south-lakeland,31/12/2017,Development Implementation,Central Services,http://opendatacommunities.org/def/concept/finance/sercop/objective/102,THOMAS GRAHAM & SONS LTD,656879,13/12/2017,73450,187.96,0,"Jangro 2ply centre feed roll white, 6",101400,Building General Materials
South Lakeland District Council,http://opendatacommunities.org/id/district-council/south-lakeland,31/12/2017,Kendal Town Hall,External Trading Accounts,,THOMAS GRAHAM & SONS LTD,656879,06/12/2017,73451,110.41,0,Paper Hand Towels - Jangro AE115 Or,101400,Building General Materials
South Lakeland District Council,http://opendatacommunities.org/id/district-council/south-lakeland,31/12/2017,Human Resources,Central Services,http://opendatacommunities.org/def/concept/finance/sercop/objective/102,QA LIMITED,2413137,06/12/2017,73455,5102,0,Prince2 foundation - 5 & 6 June 2018,261500,HR Training & Conferences
South Lakeland District Council,http://opendatacommunities.org/id/district-council/south-lakeland,31/12/2017,Human Resources,Central Services,http://opendatacommunities.org/def/concept/finance/sercop/objective/102,QA LIMITED,2413137,06/12/2017,73456,5759,0,Prince2 foundation - 5 & 6 June 2018,261500,HR Training & Conferences
South Lakeland District Council,http://opendatacommunities.org/id/district-council/south-lakeland,31/12/2017,ICT Group,Central Services,http://opendatacommunities.org/def/concept/finance/sercop/objective/102,Insight Direct (Uk) Ltd,2579852,06/12/2017,73457,30318.43,0,Northgate Support & Maintenance - Year 3,271200,ICT Hardware
South Lakeland District Council,http://opendatacommunities.org/id/district-council/south-lakeland,31/12/2017,Kendal Town Hall,Cultural Environmental Regulatory & Planning Services,http://opendatacommunities.org/def/concept/finance/sercop/objective/104,CRUDEN PROPERTY SERVICES LTD,3851237,06/12/2017,73458,240,0,Removal of the Town Counciil Desks and,391111,Construction Buildings Repair & Mtce
South Lakeland District Council,http://opendatacommunities.org/id/district-council/south-lakeland,31/12/2017,Social Enterprise Admin,Highways & Transport Services,http://opendatacommunities.org/def/concept/finance/sercop/objective/107,METRIC GROUP LIMITED,2560839,11/12/2017,73459,693,0,Web hosting and web tariff editor for 66,359999,Street & Traffic Not Elsewhere Classifie
South Lakeland District Council,http://opendatacommunities.org/id/district-council/south-lakeland,31/12/2017,Development Implementation,Central Services,http://opendatacommunities.org/def/concept/finance/sercop/objective/102,Southall Associates Limited,5751804,11/12/2017,73460,1155,0,"Annual Licence for access to Audit,",202100,Financial Services Subscriptions
South Lakeland District Council,http://opendatacommunities.org/id/district-council/south-lakeland,31/12/2017,Development Strategy,Cultural Environmental Regulatory & Planning Services,http://opendatacommunities.org/def/concept/finance/sercop/objective/104,TRILITHON LTD,3390011,06/12/2017,73461,250,0,Further work to amend the LDF database.,271515,ICT Website Development
South Lakeland District Council,http://opendatacommunities.org/id/district-council/south-lakeland,31/12/2017,Business Support Community Services,Internal Trading Accounts,,RIBBLESDALE AUTO ELECTRICS 1992 LTD,2732686,06/12/2017,73463,6.47,0,Batteries,381500,Vehicle Mgt Parts
South Lakeland District Council,http://opendatacommunities.org/id/district-council/south-lakeland,31/12/2017,Development Implementation,Cultural Environmental Regulatory & Planning Services,http://opendatacommunities.org/def/concept/finance/sercop/objective/104,HBN Restaurants Ltd,4184849,06/12/2017,73464,550,0,Participation in the Kendal Courtesy,201700,Financial Services Grants
South Lakeland District Council,http://opendatacommunities.org/id/district-council/south-lakeland,31/12/2017,Development Implementation,Housing,http://opendatacommunities.org/def/concept/finance/sercop/objective/108,Howe Projects Ltd,,06/12/2017,73465,47130.21,0,Town View Fields Hostel REF: 70701K,109999,Building Not Elsewhere Classified
South Lakeland District Council,http://opendatacommunities.org/id/district-council/south-lakeland,31/12/2017,Development Implementation,Highways & Transport Services,http://opendatacommunities.org/def/concept/finance/sercop/objective/107,FGH SECURITY,,06/12/2017,73466,834.96,0,Security Services for South Lakeland,192200,Facilities Security
South Lakeland District Council,http://opendatacommunities.org/id/district-council/south-lakeland,31/12/2017,Development Implementation,Transport,http://opendatacommunities.org/def/concept/finance/sercop/objective/107,LAMBERT SMITH HAMPTON GROUP,2521225,06/12/2017,73467,726.27,0,Cash Collectors Office & Pedestrian,999999,Unclassifiable
South Lakeland District Council,http://opendatacommunities.org/id/district-council/south-lakeland,31/12/2017,Development Implementation,Central Services,http://opendatacommunities.org/def/concept/finance/sercop/objective/102,Brown Toland Brown Associates,,06/12/2017,73468,2490,0,Provision of consultancy services for,151000,Consultancy Business
South Lakeland District Council,http://opendatacommunities.org/id/district-council/south-lakeland,31/12/2017,Development Implementation,Environment Regulatory,,A. E. Yates Ltd,415632,06/12/2017,73469,59458.41,0,"Rothay Park, Ambleside - Retaining Wall",391400,Construction Roads
South Lakeland District Council,http://opendatacommunities.org/id/district-council/south-lakeland,31/12/2017,Business Support Community Services,Internal Trading Accounts,,ALAN MYERSCOUGH LTD,2027076,06/12/2017,73470,250,0,VAT,381400,Vehicle Mgt Maintenance
South Lakeland District Council,http://opendatacommunities.org/id/district-council/south-lakeland,31/12/2017,Kendal Town Hall,External Trading Accounts,,LAKELAND RADIO LTD,4031744,18/12/2017,73472,550,0,Advertising campaign for Lakeland Radio,182015,Environment Waste Mgt Waste Disposal
South Lakeland District Council,http://opendatacommunities.org/id/district-council/south-lakeland,31/12/2017,Leisure and Wellbeing,Cultural Environmental Regulatory & Planning Services,http://opendatacommunities.org/def/concept/finance/sercop/objective/104,PARKLAND MACHINERY LTD,5253701,06/12/2017,73473,150,0,For the removal of old slide supports,331000,Sports Playground Equipment
South Lakeland District Council,http://opendatacommunities.org/id/district-council/south-lakeland,31/12/2017,Electoral Services,Central Services,http://opendatacommunities.org/def/concept/finance/sercop/objective/102,ROYAL MAIL GROUP PLC,,06/12/2017,73476,111.39,0,Canvass Return Postage,301200,Mail Services� Postage
South Lakeland District Council,http://opendatacommunities.org/id/district-council/south-lakeland,31/12/2017,Human Resources,Central Services,http://opendatacommunities.org/def/concept/finance/sercop/objective/102,EMPLOYMENT PAGES LTD,7363099,06/12/2017,73477,397.8,0,Facilities Manager - 244.8,261400,HR Temporary & Agency Staff
South Lakeland District Council,http://opendatacommunities.org/id/district-council/south-lakeland,31/12/2017,Business Support Community Services,Internal Trading Accounts,,RIBBLESDALE AUTO ELECTRICS 1992 LTD,2732686,06/12/2017,73478,62.34,0,Parts,381500,Vehicle Mgt Parts
South Lakeland District Council,http://opendatacommunities.org/id/district-council/south-lakeland,31/12/2017,Business Support Community Services,Housing Services,http://opendatacommunities.org/def/concept/finance/sercop/objective/108,Ashberry Recruitment,7202591,06/12/2017,73479,486,0,Agency temporary support worker at Town,261300,HR Recruitment & Assessment
South Lakeland District Council,http://opendatacommunities.org/id/district-council/south-lakeland,31/12/2017,Kendal Town Hall,Cultural Environmental Regulatory & Planning Services,http://opendatacommunities.org/def/concept/finance/sercop/objective/104,THOMAS GRAHAM & SONS LTD,656879,06/12/2017,73480,-32.75,0,M12 X 70 HEX COACH SCREW A2 S/STEEL,101400,Building General Materials
South Lakeland District Council,http://opendatacommunities.org/id/district-council/south-lakeland,31/12/2017,Business Support Community Services,Housing Services,http://opendatacommunities.org/def/concept/finance/sercop/objective/108,Ashberry Recruitment,7202591,11/12/2017,73491,648.14,0,Agency temporary support worker at Town,261300,HR Recruitment & Assessment
South Lakeland District Council,http://opendatacommunities.org/id/district-council/south-lakeland,31/12/2017,Business Support Community Services,Housing Services,http://opendatacommunities.org/def/concept/finance/sercop/objective/108,James Andrews Recruitment Solutions,6834852,11/12/2017,73492,809.55,0,Temporary Housing Options Advisor,261400,HR Temporary & Agency Staff
South Lakeland District Council,http://opendatacommunities.org/id/district-council/south-lakeland,31/12/2017,Social Enterprise Admin,Highways & Transport Services,http://opendatacommunities.org/def/concept/finance/sercop/objective/107,METRIC GROUP LIMITED,2560839,11/12/2017,73495,990,0,Chip and Pin costs for 66 machines 1,359999,Street & Traffic Not Elsewhere Classifie
South Lakeland District Council,http://opendatacommunities.org/id/district-council/south-lakeland,31/12/2017,Development Implementation,Central Services,http://opendatacommunities.org/def/concept/finance/sercop/objective/102,ENVIROFIRST LTD,5999123,11/12/2017,73498,132.32,0,Lowther Street Wheelie bin mixed,182012,Environment Waste Management Recycling
South Lakeland District Council,http://opendatacommunities.org/id/district-council/south-lakeland,31/12/2017,Business Support Community Services,SLDC as Agent,,CUMBRIA COUNTY COUNCIL,,18/12/2017,73499,108,0,DBS Checks for Taxi Drivers,908000,Public Bodies Council support services
South Lakeland District Council,http://opendatacommunities.org/id/district-council/south-lakeland,31/12/2017,Development Implementation,Central Services,http://opendatacommunities.org/def/concept/finance/sercop/objective/102,COX & ALLEN (KENDAL) LTD,1611371,11/12/2017,73500,4167.28,0,"Age Concern Building Refurbishment,",391110,Construction Buildings Construction
South Lakeland District Council,http://opendatacommunities.org/id/district-council/south-lakeland,31/12/2017,Electoral Services,Central Services,http://opendatacommunities.org/def/concept/finance/sercop/objective/102,HALAROSE LIMITED,1362834,11/12/2017,73501,2975.65,0,HERA  for 2017 Canvass,271600,ICT Software Customised & Bespoke
South Lakeland District Council,http://opendatacommunities.org/id/district-council/south-lakeland,31/12/2017,Kendal Town Hall,Cultural Environmental Regulatory & Planning Services,http://opendatacommunities.org/def/concept/finance/sercop/objective/104,W MCCLURE LTD,685360,11/12/2017,73502,35.1,0,Nescafe Coffee Sachets - Ordinary - Per,111200,Catering Food & Beverages
South Lakeland District Council,http://opendatacommunities.org/id/district-council/south-lakeland,31/12/2017,Development Implementation,Central Services,http://opendatacommunities.org/def/concept/finance/sercop/objective/102,THOMAS GRAHAM & SONS LTD,656879,11/12/2017,73503,-8.86,0,Lemon Floor Gel - 1 box of 2,101400,Building General Materials
South Lakeland District Council,http://opendatacommunities.org/id/district-council/south-lakeland,31/12/2017,Business Support Community Services,Housing Services,http://opendatacommunities.org/def/concept/finance/sercop/objective/108,STEELES REMOVALS LTD,3082686,11/12/2017,73504,37,0,Removal into storage,191900,Facilities Removals
South Lakeland District Council,http://opendatacommunities.org/id/district-council/south-lakeland,31/12/2017,Business Support Community Services,Housing Services,http://opendatacommunities.org/def/concept/finance/sercop/objective/108,My Dream Cleaners Ltd,9839482,11/12/2017,73505,863.75,0,Cleaning Services Town View Fileds,131320,Cleaning & Janitorial Cleaning Service
South Lakeland District Council,http://opendatacommunities.org/id/district-council/south-lakeland,31/12/2017,Democratic and Member Services,Central Services,http://opendatacommunities.org/def/concept/finance/sercop/objective/102,YOUDELLS,,11/12/2017,73506,70.69,0,Supplies purchased for  Chairmans,171110,Education Arts & Crafts
South Lakeland District Council,http://opendatacommunities.org/id/district-council/south-lakeland,31/12/2017,Development Implementation,Central Services,http://opendatacommunities.org/def/concept/finance/sercop/objective/102,LAMBERT SMITH HAMPTON GROUP,2521225,18/12/2017,73507,621,0,South Lakeland House & Canal Head Depot,999999,Unclassifiable
South Lakeland District Council,http://opendatacommunities.org/id/district-council/south-lakeland,31/12/2017,Development Implementation,Central Services,http://opendatacommunities.org/def/concept/finance/sercop/objective/102,LAMBERT SMITH HAMPTON GROUP,2521225,18/12/2017,73508,311.5,0,Kendal Town Hall - DEC (Sept 17),999999,Unclassifiable
South Lakeland District Council,http://opendatacommunities.org/id/district-council/south-lakeland,31/12/2017,Business Support Community Services,Transport Planning Policy,http://opendatacommunities.org/def/concept/finance/sercop/objective/107,ARCO LIMITED,133804,11/12/2017,73509,50.31,0,Cleaning materials,141100,Clothing Protective
South Lakeland District Council,http://opendatacommunities.org/id/district-council/south-lakeland,31/12/2017,Business Support Community Services,Internal Trading Accounts,,ARCO LIMITED,133804,11/12/2017,73509,1152.22,0,Cleaning materials,141100,Clothing Protective
South Lakeland District Council,http://opendatacommunities.org/id/district-council/south-lakeland,31/12/2017,Business Support Community Services,Internal Trading Accounts,,Fleetmatics (UK) Ltd,5265904,11/12/2017,73510,684,0,Vehicle tracking subscription 01/12/16 -,361000,Public Transport Fleet Management
South Lakeland District Council,http://opendatacommunities.org/id/district-council/south-lakeland,31/12/2017,Business Support Community Services,Internal Trading Accounts,,HYDRAIR TRUCK & TRAILER PARTS LTD,,11/12/2017,73511,27.9,0,Parts,381500,Vehicle Mgt Parts
South Lakeland District Council,http://opendatacommunities.org/id/district-council/south-lakeland,31/12/2017,Business Support Community Services,Internal Trading Accounts,,ARCO LIMITED,133804,11/12/2017,73512,198.38,0,Cleaning materials,141100,Clothing Protective
South Lakeland District Council,http://opendatacommunities.org/id/district-council/south-lakeland,31/12/2017,Business Support Community Services,Internal Trading Accounts,,TPS Preston,,11/12/2017,73513,36.22,0,Parts,381400,Vehicle Mgt Maintenance
South Lakeland District Council,http://opendatacommunities.org/id/district-council/south-lakeland,31/12/2017,Business Support Community Services,Internal Trading Accounts,,DENNIS EAGLE LTD,3794455,11/12/2017,73514,132.43,0,Parts,381300,Vehicle Mgt Industrial
South Lakeland District Council,http://opendatacommunities.org/id/district-council/south-lakeland,31/12/2017,Transport,Internal Trading Accounts,,JOHNSTON SWEEPERS LTD,199841,11/12/2017,73515,262.91,0,Motor,181600,Environment Street Cleansing
South Lakeland District Council,http://opendatacommunities.org/id/district-council/south-lakeland,31/12/2017,Human Resources,Central Services,http://opendatacommunities.org/def/concept/finance/sercop/objective/102,IOSH SERVICES LTD,1816826,11/12/2017,73516,350,0,LICENSED PERIOD 07 Jan 2018 - 06 Jan,221100,Health & Safety� Maintenance
South Lakeland District Council,http://opendatacommunities.org/id/district-council/south-lakeland,31/12/2017,Business Support Community Services,Cultural Environmental Regulatory & Planning Services,http://opendatacommunities.org/def/concept/finance/sercop/objective/104,POLICE & CRIME COMMISSIONER,,18/12/2017,73517,20000,0,Contribution to SARC 2017/18 from SLDC.,350100,Street & Traffic Closed-Circuit TV
South Lakeland District Council,http://opendatacommunities.org/id/district-council/south-lakeland,31/12/2017,Business Support Community Services,Internal Trading Accounts,,ARCO LIMITED,133804,11/12/2017,73518,16.16,0,Cleaning materials,141100,Clothing Protective
South Lakeland District Council,http://opendatacommunities.org/id/district-council/south-lakeland,31/12/2017,Business Support Community Services,Internal Trading Accounts,,ARCO LIMITED,133804,11/12/2017,73519,48.48,0,Cleaning materials,141100,Clothing Protective
South Lakeland District Council,http://opendatacommunities.org/id/district-council/south-lakeland,31/12/2017,Business Support Community Services,Internal Trading Accounts,,ARCO LIMITED,133804,11/12/2017,73520,274.3,0,Cleaning materials,141100,Clothing Protective
South Lakeland District Council,http://opendatacommunities.org/id/district-council/south-lakeland,31/12/2017,Social Enterprise Admin,Highways & Transport Services,http://opendatacommunities.org/def/concept/finance/sercop/objective/107,ARCO LIMITED,133804,11/12/2017,73521,26.37,0,4 Ambersil Label and Adhesive Remover,141100,Clothing Protective
South Lakeland District Council,http://opendatacommunities.org/id/district-council/south-lakeland,31/12/2017,Leisure and Wellbeing,Highways & Transport Services,http://opendatacommunities.org/def/concept/finance/sercop/objective/107,CONTINENTAL LANDSCAPES LTD,2108452,11/12/2017,73524,12.33,0,Parks Routine Maintenance Nov,391310,Construction Open Spaces Construction
South Lakeland District Council,http://opendatacommunities.org/id/district-council/south-lakeland,31/12/2017,Leisure and Wellbeing,Highways & Transport Services,http://opendatacommunities.org/def/concept/finance/sercop/objective/107,CONTINENTAL LANDSCAPES LTD,2108452,11/12/2017,73524,123.32,0,Parks Routine Maintenance Nov,391310,Construction Open Spaces Construction
South Lakeland District Council,http://opendatacommunities.org/id/district-council/south-lakeland,31/12/2017,Leisure and Wellbeing,Highways & Transport Services,http://opendatacommunities.org/def/concept/finance/sercop/objective/107,CONTINENTAL LANDSCAPES LTD,2108452,11/12/2017,73524,1.23,0,Parks Routine Maintenance Nov,391310,Construction Open Spaces Construction
South Lakeland District Council,http://opendatacommunities.org/id/district-council/south-lakeland,31/12/2017,Leisure and Wellbeing,Highways & Transport Services,http://opendatacommunities.org/def/concept/finance/sercop/objective/107,CONTINENTAL LANDSCAPES LTD,2108452,11/12/2017,73524,12.33,0,Parks Routine Maintenance Nov,391310,Construction Open Spaces Construction
South Lakeland District Council,http://opendatacommunities.org/id/district-council/south-lakeland,31/12/2017,Leisure and Wellbeing,Highways & Transport Services,http://opendatacommunities.org/def/concept/finance/sercop/objective/107,CONTINENTAL LANDSCAPES LTD,2108452,11/12/2017,73524,123.32,0,Parks Routine Maintenance Nov,391310,Construction Open Spaces Construction
South Lakeland District Council,http://opendatacommunities.org/id/district-council/south-lakeland,31/12/2017,Leisure and Wellbeing,Highways & Transport Services,http://opendatacommunities.org/def/concept/finance/sercop/objective/107,CONTINENTAL LANDSCAPES LTD,2108452,11/12/2017,73524,12.33,0,Parks Routine Maintenance Nov,391310,Construction Open Spaces Construction
South Lakeland District Council,http://opendatacommunities.org/id/district-council/south-lakeland,31/12/2017,Leisure and Wellbeing,Highways & Transport Services,http://opendatacommunities.org/def/concept/finance/sercop/objective/107,CONTINENTAL LANDSCAPES LTD,2108452,11/12/2017,73524,24.66,0,Parks Routine Maintenance Nov,391310,Construction Open Spaces Construction
South Lakeland District Council,http://opendatacommunities.org/id/district-council/south-lakeland,31/12/2017,Leisure and Wellbeing,Highways & Transport Services,http://opendatacommunities.org/def/concept/finance/sercop/objective/107,CONTINENTAL LANDSCAPES LTD,2108452,11/12/2017,73524,15.41,0,Parks Routine Maintenance Nov,391310,Construction Open Spaces Construction
South Lakeland District Council,http://opendatacommunities.org/id/district-council/south-lakeland,31/12/2017,Leisure and Wellbeing,Highways & Transport Services,http://opendatacommunities.org/def/concept/finance/sercop/objective/107,CONTINENTAL LANDSCAPES LTD,2108452,11/12/2017,73524,154.15,0,Parks Routine Maintenance Nov,391310,Construction Open Spaces Construction
South Lakeland District Council,http://opendatacommunities.org/id/district-council/south-lakeland,31/12/2017,Leisure and Wellbeing,Highways & Transport Services,http://opendatacommunities.org/def/concept/finance/sercop/objective/107,CONTINENTAL LANDSCAPES LTD,2108452,11/12/2017,73524,6.17,0,Parks Routine Maintenance Nov,391310,Construction Open Spaces Construction
South Lakeland District Council,http://opendatacommunities.org/id/district-council/south-lakeland,31/12/2017,Leisure and Wellbeing,Highways & Transport Services,http://opendatacommunities.org/def/concept/finance/sercop/objective/107,CONTINENTAL LANDSCAPES LTD,2108452,11/12/2017,73524,61.66,0,Parks Routine Maintenance Nov,391310,Construction Open Spaces Construction
South Lakeland District Council,http://opendatacommunities.org/id/district-council/south-lakeland,31/12/2017,Leisure and Wellbeing,Highways & Transport Services,http://opendatacommunities.org/def/concept/finance/sercop/objective/107,CONTINENTAL LANDSCAPES LTD,2108452,11/12/2017,73524,24.66,0,Parks Routine Maintenance Nov,391310,Construction Open Spaces Construction
South Lakeland District Council,http://opendatacommunities.org/id/district-council/south-lakeland,31/12/2017,Leisure and Wellbeing,Highways & Transport Services,http://opendatacommunities.org/def/concept/finance/sercop/objective/107,CONTINENTAL LANDSCAPES LTD,2108452,11/12/2017,73524,6.17,0,Parks Routine Maintenance Nov,391310,Construction Open Spaces Construction
South Lakeland District Council,http://opendatacommunities.org/id/district-council/south-lakeland,31/12/2017,Leisure and Wellbeing,Highways & Transport Services,http://opendatacommunities.org/def/concept/finance/sercop/objective/107,CONTINENTAL LANDSCAPES LTD,2108452,11/12/2017,73524,4.01,0,Parks Routine Maintenance Nov,391310,Construction Open Spaces Construction
South Lakeland District Council,http://opendatacommunities.org/id/district-council/south-lakeland,31/12/2017,Leisure and Wellbeing,Highways & Transport Services,http://opendatacommunities.org/def/concept/finance/sercop/objective/107,CONTINENTAL LANDSCAPES LTD,2108452,11/12/2017,73524,6.17,0,Parks Routine Maintenance Nov,391310,Construction Open Spaces Construction
South Lakeland District Council,http://opendatacommunities.org/id/district-council/south-lakeland,31/12/2017,Leisure and Wellbeing,Highways & Transport Services,http://opendatacommunities.org/def/concept/finance/sercop/objective/107,CONTINENTAL LANDSCAPES LTD,2108452,11/12/2017,73524,73.99,0,Parks Routine Maintenance Nov,391310,Construction Open Spaces Construction
South Lakeland District Council,http://opendatacommunities.org/id/district-council/south-lakeland,31/12/2017,Leisure and Wellbeing,Highways & Transport Services,http://opendatacommunities.org/def/concept/finance/sercop/objective/107,CONTINENTAL LANDSCAPES LTD,2108452,11/12/2017,73524,3.08,0,Parks Routine Maintenance Nov,391310,Construction Open Spaces Construction
South Lakeland District Council,http://opendatacommunities.org/id/district-council/south-lakeland,31/12/2017,Leisure and Wellbeing,Highways & Transport Services,http://opendatacommunities.org/def/concept/finance/sercop/objective/107,CONTINENTAL LANDSCAPES LTD,2108452,11/12/2017,73524,5.55,0,Parks Routine Maintenance Nov,391310,Construction Open Spaces Construction
South Lakeland District Council,http://opendatacommunities.org/id/district-council/south-lakeland,31/12/2017,Leisure and Wellbeing,Highways & Transport Services,http://opendatacommunities.org/def/concept/finance/sercop/objective/107,CONTINENTAL LANDSCAPES LTD,2108452,11/12/2017,73524,6.17,0,Parks Routine Maintenance Nov,391310,Construction Open Spaces Construction
South Lakeland District Council,http://opendatacommunities.org/id/district-council/south-lakeland,31/12/2017,Leisure and Wellbeing,Highways & Transport Services,http://opendatacommunities.org/def/concept/finance/sercop/objective/107,CONTINENTAL LANDSCAPES LTD,2108452,11/12/2017,73524,67.82,0,Parks Routine Maintenance Nov,391310,Construction Open Spaces Construction
South Lakeland District Council,http://opendatacommunities.org/id/district-council/south-lakeland,31/12/2017,Leisure and Wellbeing,Highways & Transport Services,http://opendatacommunities.org/def/concept/finance/sercop/objective/107,CONTINENTAL LANDSCAPES LTD,2108452,11/12/2017,73524,129.48,0,Parks Routine Maintenance Nov,391310,Construction Open Spaces Construction
South Lakeland District Council,http://opendatacommunities.org/id/district-council/south-lakeland,31/12/2017,Leisure and Wellbeing,Highways & Transport Services,http://opendatacommunities.org/def/concept/finance/sercop/objective/107,CONTINENTAL LANDSCAPES LTD,2108452,11/12/2017,73524,6.17,0,Parks Routine Maintenance Nov,391310,Construction Open Spaces Construction
South Lakeland District Council,http://opendatacommunities.org/id/district-council/south-lakeland,31/12/2017,Leisure and Wellbeing,Highways & Transport Services,http://opendatacommunities.org/def/concept/finance/sercop/objective/107,CONTINENTAL LANDSCAPES LTD,2108452,11/12/2017,73524,12.33,0,Parks Routine Maintenance Nov,391310,Construction Open Spaces Construction
South Lakeland District Council,http://opendatacommunities.org/id/district-council/south-lakeland,31/12/2017,Leisure and Wellbeing,Highways & Transport Services,http://opendatacommunities.org/def/concept/finance/sercop/objective/107,CONTINENTAL LANDSCAPES LTD,2108452,11/12/2017,73524,12.33,0,Parks Routine Maintenance Nov,391310,Construction Open Spaces Construction
South Lakeland District Council,http://opendatacommunities.org/id/district-council/south-lakeland,31/12/2017,Leisure and Wellbeing,Highways & Transport Services,http://opendatacommunities.org/def/concept/finance/sercop/objective/107,CONTINENTAL LANDSCAPES LTD,2108452,11/12/2017,73524,184.98,0,Parks Routine Maintenance Nov,391310,Construction Open Spaces Construction
South Lakeland District Council,http://opendatacommunities.org/id/district-council/south-lakeland,31/12/2017,Leisure and Wellbeing,Highways & Transport Services,http://opendatacommunities.org/def/concept/finance/sercop/objective/107,CONTINENTAL LANDSCAPES LTD,2108452,11/12/2017,73524,6.17,0,Parks Routine Maintenance Nov,391310,Construction Open Spaces Construction
South Lakeland District Council,http://opendatacommunities.org/id/district-council/south-lakeland,31/12/2017,Leisure and Wellbeing,Highways & Transport Services,http://opendatacommunities.org/def/concept/finance/sercop/objective/107,CONTINENTAL LANDSCAPES LTD,2108452,11/12/2017,73524,55.49,0,Parks Routine Maintenance Nov,391310,Construction Open Spaces Construction
South Lakeland District Council,http://opendatacommunities.org/id/district-council/south-lakeland,31/12/2017,Leisure and Wellbeing,Highways & Transport Services,http://opendatacommunities.org/def/concept/finance/sercop/objective/107,CONTINENTAL LANDSCAPES LTD,2108452,11/12/2017,73524,12.33,0,Parks Routine Maintenance Nov,391310,Construction Open Spaces Construction
South Lakeland District Council,http://opendatacommunities.org/id/district-council/south-lakeland,31/12/2017,Leisure and Wellbeing,Highways & Transport Services,http://opendatacommunities.org/def/concept/finance/sercop/objective/107,CONTINENTAL LANDSCAPES LTD,2108452,11/12/2017,73524,24.66,0,Parks Routine Maintenance Nov,391310,Construction Open Spaces Construction
South Lakeland District Council,http://opendatacommunities.org/id/district-council/south-lakeland,31/12/2017,Leisure and Wellbeing,Highways & Transport Services,http://opendatacommunities.org/def/concept/finance/sercop/objective/107,CONTINENTAL LANDSCAPES LTD,2108452,11/12/2017,73524,18.5,0,Parks Routine Maintenance Nov,391310,Construction Open Spaces Construction
South Lakeland District Council,http://opendatacommunities.org/id/district-council/south-lakeland,31/12/2017,Leisure and Wellbeing,Highways & Transport Services,http://opendatacommunities.org/def/concept/finance/sercop/objective/107,CONTINENTAL LANDSCAPES LTD,2108452,11/12/2017,73524,18.5,0,Parks Routine Maintenance Nov,391310,Construction Open Spaces Construction
South Lakeland District Council,http://opendatacommunities.org/id/district-council/south-lakeland,31/12/2017,Leisure and Wellbeing,Cultural Environmental Regulatory & Planning Services,http://opendatacommunities.org/def/concept/finance/sercop/objective/104,CONTINENTAL LANDSCAPES LTD,2108452,11/12/2017,73524,9865.39,0,Parks Routine Maintenance Nov,391310,Construction Open Spaces Construction
South Lakeland District Council,http://opendatacommunities.org/id/district-council/south-lakeland,31/12/2017,Leisure and Wellbeing,Cultural Environmental Regulatory & Planning Services,http://opendatacommunities.org/def/concept/finance/sercop/objective/104,CONTINENTAL LANDSCAPES LTD,2108452,11/12/2017,73524,48118.43,0,Parks Routine Maintenance Nov,391310,Construction Open Spaces Construction
South Lakeland District Council,http://opendatacommunities.org/id/district-council/south-lakeland,31/12/2017,Leisure and Wellbeing,Cultural Environmental Regulatory & Planning Services,http://opendatacommunities.org/def/concept/finance/sercop/objective/104,CONTINENTAL LANDSCAPES LTD,2108452,11/12/2017,73524,493.27,0,Parks Routine Maintenance Nov,391310,Construction Open Spaces Construction
South Lakeland District Council,http://opendatacommunities.org/id/district-council/south-lakeland,31/12/2017,Leisure and Wellbeing,Cultural Environmental Regulatory & Planning Services,http://opendatacommunities.org/def/concept/finance/sercop/objective/104,CONTINENTAL LANDSCAPES LTD,2108452,11/12/2017,73524,1849.76,0,Parks Routine Maintenance Nov,391310,Construction Open Spaces Construction
South Lakeland District Council,http://opendatacommunities.org/id/district-council/south-lakeland,31/12/2017,Leisure and Wellbeing,External Trading Accounts,,CONTINENTAL LANDSCAPES LTD,2108452,11/12/2017,73524,107.9,0,Parks Routine Maintenance Nov,391310,Construction Open Spaces Construction
South Lakeland District Council,http://opendatacommunities.org/id/district-council/south-lakeland,31/12/2017,Leisure and Wellbeing,Cultural Environmental Regulatory & Planning Services,http://opendatacommunities.org/def/concept/finance/sercop/objective/104,CONTINENTAL LANDSCAPES LTD,2108452,11/12/2017,73525,3647.15,0,Burials for November 17,391310,Construction Open Spaces Construction
South Lakeland District Council,http://opendatacommunities.org/id/district-council/south-lakeland,31/12/2017,Business Support Community Services,Internal Trading Accounts,,EK MOTOR FACTORS LTD,838524,11/12/2017,73529,20.1,0,Parts,381400,Vehicle Mgt Maintenance
South Lakeland District Council,http://opendatacommunities.org/id/district-council/south-lakeland,31/12/2017,Business Support Community Services,Internal Trading Accounts,,ARCO LIMITED,133804,11/12/2017,73530,38.2,0,Cleaning materials,141100,Clothing Protective
South Lakeland District Council,http://opendatacommunities.org/id/district-council/south-lakeland,31/12/2017,Business Support Community Services,Central Services,http://opendatacommunities.org/def/concept/finance/sercop/objective/102,KHS (Klein Handling Systems) Ltd,5797789,11/12/2017,73531,120,0,Transport vehicle from Kendal to,381206,Vehicle Mgt Heavy Construction Equip Pur
South Lakeland District Council,http://opendatacommunities.org/id/district-council/south-lakeland,31/12/2017,Business Support Community Services,Internal Trading Accounts,,ARCO LIMITED,133804,11/12/2017,73532,54.28,0,Cleaning materials,141100,Clothing Protective
South Lakeland District Council,http://opendatacommunities.org/id/district-council/south-lakeland,31/12/2017,Business Support Community Services,Internal Trading Accounts,,PENNINGTONS (KENDAL) LIMITED,434649,11/12/2017,73533,2500,0,Annual Charge for use of Link Road at,182013,Environment Waste Mgt Waste Collection
South Lakeland District Council,http://opendatacommunities.org/id/district-council/south-lakeland,31/12/2017,Business Support Community Services,Cultural Environmental Regulatory & Planning Services,http://opendatacommunities.org/def/concept/finance/sercop/objective/104,LAKELAND SUPPLIES,,11/12/2017,73534,35,0,Parts,101610,Building Hand Tools
South Lakeland District Council,http://opendatacommunities.org/id/district-council/south-lakeland,31/12/2017,Business Support Community Services,Internal Trading Accounts,,COMPASS COMPONENTS,,11/12/2017,73535,204.74,0,Consumables 01/04/17 - 31/03/18,101400,Building General Materials
South Lakeland District Council,http://opendatacommunities.org/id/district-council/south-lakeland,31/12/2017,Business Support Community Services,Internal Trading Accounts,,TPS Preston,,11/12/2017,73536,5,0,Parts,381400,Vehicle Mgt Maintenance
South Lakeland District Council,http://opendatacommunities.org/id/district-council/south-lakeland,31/12/2017,Business Support Community Services,Internal Trading Accounts,,HYDRAIR TRUCK & TRAILER PARTS LTD,,11/12/2017,73537,98.28,0,Parts,381500,Vehicle Mgt Parts
South Lakeland District Council,http://opendatacommunities.org/id/district-council/south-lakeland,31/12/2017,Business Support Community Services,Internal Trading Accounts,,A & W COMMERCIALS LTD,2630625,11/12/2017,73538,217.7,0,Seal kits,381400,Vehicle Mgt Maintenance
South Lakeland District Council,http://opendatacommunities.org/id/district-council/south-lakeland,31/12/2017,Business Support Community Services,Internal Trading Accounts,,EK MOTOR FACTORS LTD,838524,11/12/2017,73539,45.08,0,Parts,381400,Vehicle Mgt Maintenance
South Lakeland District Council,http://opendatacommunities.org/id/district-council/south-lakeland,31/12/2017,Business Support Community Services,Internal Trading Accounts,,DENNIS EAGLE LTD,3794455,11/12/2017,73540,171.99,0,Parts,381300,Vehicle Mgt Industrial
South Lakeland District Council,http://opendatacommunities.org/id/district-council/south-lakeland,31/12/2017,Business Support Community Services,Internal Trading Accounts,,HYDRAIR TRUCK & TRAILER PARTS LTD,,11/12/2017,73541,88.55,0,Parts,381500,Vehicle Mgt Parts
South Lakeland District Council,http://opendatacommunities.org/id/district-council/south-lakeland,31/12/2017,Democratic and Member Services,Cultural Environmental Regulatory & Planning Services,http://opendatacommunities.org/def/concept/finance/sercop/objective/104,GRANGE OVER SANDS TOWN COUNCIL,,11/12/2017,73542,1000,0,1000 donation from Cllr to,908000,Public Bodies Council support services
South Lakeland District Council,http://opendatacommunities.org/id/district-council/south-lakeland,31/12/2017,Development Implementation,Cultural Environmental Regulatory & Planning Services,http://opendatacommunities.org/def/concept/finance/sercop/objective/104,WINDERMERE LAKE CRUISES LTD,929280,18/12/2017,73546,103.13,0,Glebe Event - Lunch booking for Friday,291000,Arts & Leisure Services Events
South Lakeland District Council,http://opendatacommunities.org/id/district-council/south-lakeland,31/12/2017,Democratic and Member Services,Cultural Environmental Regulatory & Planning Services,http://opendatacommunities.org/def/concept/finance/sercop/objective/104,GRANTS- MISCELLANEOUS,,11/12/2017,73547,520,0,�DONATION FROM CLL THORNTON TOWARDS,201700,Financial Services Grants
South Lakeland District Council,http://opendatacommunities.org/id/district-council/south-lakeland,31/12/2017,Cemeteries Office,Cultural Environmental Regulatory & Planning Services,http://opendatacommunities.org/def/concept/finance/sercop/objective/104,PARKIN & JACKSON LTD,8282892,11/12/2017,73548,64,0,Remove and replace H/stone on ,121000,Cemetery & Crematorium Burial & Crem
South Lakeland District Council,http://opendatacommunities.org/id/district-council/south-lakeland,31/12/2017,Business Support Community Services,Environment Regulatory,,CRUDEN PROPERTY SERVICES LTD,3851237,11/12/2017,73549,612.2,0,Remove street light on wall of Natland,391111,Construction Buildings Repair & Mtce
South Lakeland District Council,http://opendatacommunities.org/id/district-council/south-lakeland,31/12/2017,Democratic and Member Services,Cultural Environmental Regulatory & Planning Services,http://opendatacommunities.org/def/concept/finance/sercop/objective/104,LEVENS PARISH COUNCIL,,11/12/2017,73550,330,0,330 donation from Cllr ,908000,Public Bodies Council support services
South Lakeland District Council,http://opendatacommunities.org/id/district-council/south-lakeland,31/12/2017,Policy & Partnerships,Central Services,http://opendatacommunities.org/def/concept/finance/sercop/objective/102,MERITEC LTD,3224622,11/12/2017,73551,6600,0,Integration with payments systems (M2 -,391200,Construction Engineering
South Lakeland District Council,http://opendatacommunities.org/id/district-council/south-lakeland,31/12/2017,Community & Housing Group,Housing,http://opendatacommunities.org/def/concept/finance/sercop/objective/108,SOUTH LAKES HOUSING,IP031419,11/12/2017,73554,83000,0,Kendal Parks acquisition of 4 x s106,191700,Facilities Property Management
South Lakeland District Council,http://opendatacommunities.org/id/district-council/south-lakeland,31/12/2017,Business Support Community Services,Internal Trading Accounts,,Masterstaff Limited,2777593,13/12/2017,73556,109.98,0,Agency staff 2017/18,261300,HR Recruitment & Assessment
South Lakeland District Council,http://opendatacommunities.org/id/district-council/south-lakeland,31/12/2017,Business Support Community Services,Central Services,http://opendatacommunities.org/def/concept/finance/sercop/objective/102,Masterstaff Limited,2777593,13/12/2017,73557,152.1,0,Agency staff 2017/18,261300,HR Recruitment & Assessment
South Lakeland District Council,http://opendatacommunities.org/id/district-council/south-lakeland,31/12/2017,Business Support Community Services,Internal Trading Accounts,,Masterstaff Limited,2777593,13/12/2017,73557,4490.85,0,Agency staff 2017/18,261300,HR Recruitment & Assessment
South Lakeland District Council,http://opendatacommunities.org/id/district-council/south-lakeland,31/12/2017,Policy & Partnerships,Central Services,http://opendatacommunities.org/def/concept/finance/sercop/objective/102,Bloom Procurement Services Ltd,,18/12/2017,73561,15786.4,0,Bloom - Data Governance Contract - 1st,151900,Consultancy Management
South Lakeland District Council,http://opendatacommunities.org/id/district-council/south-lakeland,31/12/2017,Business Support Community Services,Internal Trading Accounts,,ADECCO UK LIMITED,593232,13/12/2017,73562,443.48,0,Agency staff 2017/18,261400,HR Temporary & Agency Staff
South Lakeland District Council,http://opendatacommunities.org/id/district-council/south-lakeland,31/12/2017,Development Implementation,Central Services,http://opendatacommunities.org/def/concept/finance/sercop/objective/102,ADECCO UK LIMITED,593232,11/12/2017,73564,251.2,0,Cleaner for SLDC - - 15hrs per,261400,HR Temporary & Agency Staff
South Lakeland District Council,http://opendatacommunities.org/id/district-council/south-lakeland,31/12/2017,Business Support Community Services,Central Services,http://opendatacommunities.org/def/concept/finance/sercop/objective/102,ADECCO UK LIMITED,593232,11/12/2017,73565,437.64,0,PAI TECHNICIAN FROM 20/11/2017,261400,HR Temporary & Agency Staff
South Lakeland District Council,http://opendatacommunities.org/id/district-council/south-lakeland,31/12/2017,Development Implementation,Cultural Environmental Regulatory & Planning Services,http://opendatacommunities.org/def/concept/finance/sercop/objective/104,RIVERBANK HOSPITALITY CATERING,,11/12/2017,73566,68.5,0,Sandwich lunch for  10,111000,Catering Banquet & Catering
South Lakeland District Council,http://opendatacommunities.org/id/district-council/south-lakeland,31/12/2017,Cemeteries Office,Cultural Environmental Regulatory & Planning Services,http://opendatacommunities.org/def/concept/finance/sercop/objective/104,GLASDON UK LTD,2160576,18/12/2017,73567,450,0,suppli 1 off black enviropol LOWTHER,109999,Building Not Elsewhere Classified
South Lakeland District Council,http://opendatacommunities.org/id/district-council/south-lakeland,31/12/2017,Human Resources,Central Services,http://opendatacommunities.org/def/concept/finance/sercop/objective/102,FLORENCE MADDEN,,18/12/2017,73568,1777.4,0,Module 1 14/11/17 to 16/11/17 = 3 days,261500,HR Training & Conferences
South Lakeland District Council,http://opendatacommunities.org/id/district-council/south-lakeland,31/12/2017,ICT Group,Central Services,http://opendatacommunities.org/def/concept/finance/sercop/objective/102,SOCITM LIMITED,4396808,11/12/2017,73569,995,0,Inform + package,152200,Consultancy Technical & Feasibility
South Lakeland District Council,http://opendatacommunities.org/id/district-council/south-lakeland,31/12/2017,Policy & Partnerships,Central Services,http://opendatacommunities.org/def/concept/finance/sercop/objective/102,Bloom Procurement Services Ltd,,11/12/2017,73570,33000,0,Description Review and Redesign of Eden,151900,Consultancy Management
South Lakeland District Council,http://opendatacommunities.org/id/district-council/south-lakeland,31/12/2017,ICT Group,Central Services,http://opendatacommunities.org/def/concept/finance/sercop/objective/102,ITPS Professional Services Ltd (DD),,01/12/2017,73571,16.5,0,1229588665,271700,ICT Telecommunications Fixed
South Lakeland District Council,http://opendatacommunities.org/id/district-council/south-lakeland,31/12/2017,ICT Group,Central Services,http://opendatacommunities.org/def/concept/finance/sercop/objective/102,ITPS Professional Services Ltd (DD),,01/12/2017,73572,65.6,0,1229588665,271700,ICT Telecommunications Fixed
South Lakeland District Council,http://opendatacommunities.org/id/district-council/south-lakeland,31/12/2017,Business Support Community Services,Housing Services,http://opendatacommunities.org/def/concept/finance/sercop/objective/108,The County Hotel,1815672,11/12/2017,73573,1225,0,B & B Accommodation,250000,Housing
South Lakeland District Council,http://opendatacommunities.org/id/district-council/south-lakeland,31/12/2017,Business Support Community Services,Housing Services,http://opendatacommunities.org/def/concept/finance/sercop/objective/108,The County Hotel,1815672,11/12/2017,73574,125,0,B&B Accommodation,250000,Housing
South Lakeland District Council,http://opendatacommunities.org/id/district-council/south-lakeland,31/12/2017,Business Support Community Services,Housing Services,http://opendatacommunities.org/def/concept/finance/sercop/objective/108,G B BURROW & SON,,11/12/2017,73575,132,0,Storage costs,192300,Facilities Storage
South Lakeland District Council,http://opendatacommunities.org/id/district-council/south-lakeland,31/12/2017,Business Support Community Services,Housing Services,http://opendatacommunities.org/def/concept/finance/sercop/objective/108,G B BURROW & SON,,11/12/2017,73576,104,0,Storage costs,192300,Facilities Storage
South Lakeland District Council,http://opendatacommunities.org/id/district-council/south-lakeland,31/12/2017,Human Resources,Central Services,http://opendatacommunities.org/def/concept/finance/sercop/objective/102,BAINES WILSON LLP,OC330890,11/12/2017,73578,450,0,Employment Law Update,261500,HR Training & Conferences
South Lakeland District Council,http://opendatacommunities.org/id/district-council/south-lakeland,31/12/2017,Development Strategy,Housing Services,http://opendatacommunities.org/def/concept/finance/sercop/objective/108,CHARTERED INSTITUTE OF HOUSING,,11/12/2017,73579,184,0,2018 Subscription: CIH Member PQ for,202100,Financial Services Subscriptions
South Lakeland District Council,http://opendatacommunities.org/id/district-council/south-lakeland,31/12/2017,Development Strategy,Cultural Environmental Regulatory & Planning Services,http://opendatacommunities.org/def/concept/finance/sercop/objective/104,RTPI SUBSCRIPTIONS,,11/12/2017,73580,300,0,2018 Subscription: RTPI Chartered,391100,Construction Buildings
South Lakeland District Council,http://opendatacommunities.org/id/district-council/south-lakeland,31/12/2017,Social Enterprise Admin,Highways & Transport Services,http://opendatacommunities.org/def/concept/finance/sercop/objective/107,We Love Logos Ltd,,13/12/2017,73581,264.65,0,Soft shell Jacket colour black Uneek,141100,Clothing Protective
South Lakeland District Council,http://opendatacommunities.org/id/district-council/south-lakeland,31/12/2017,Development Strategy,Cultural Environmental Regulatory & Planning Services,http://opendatacommunities.org/def/concept/finance/sercop/objective/104,RTPI SUBSCRIPTIONS,,11/12/2017,73582,300,0,2018 Subscription: RTPI Chartered,391100,Construction Buildings
South Lakeland District Council,http://opendatacommunities.org/id/district-council/south-lakeland,31/12/2017,Development Strategy,Cultural Environmental Regulatory & Planning Services,http://opendatacommunities.org/def/concept/finance/sercop/objective/104,RTPI SUBSCRIPTIONS,,11/12/2017,73584,300,0,2018 Subscription: RTPI Chartered,391100,Construction Buildings
South Lakeland District Council,http://opendatacommunities.org/id/district-council/south-lakeland,31/12/2017,Development Strategy,Cultural Environmental Regulatory & Planning Services,http://opendatacommunities.org/def/concept/finance/sercop/objective/104,RTPI SUBSCRIPTIONS,,11/12/2017,73585,300,0,2018 Subscription: RTPI Chartered,391100,Construction Buildings
South Lakeland District Council,http://opendatacommunities.org/id/district-council/south-lakeland,31/12/2017,Development Strategy,Cultural Environmental Regulatory & Planning Services,http://opendatacommunities.org/def/concept/finance/sercop/objective/104,RTPI SUBSCRIPTIONS,,11/12/2017,73586,300,0,2018 Subscription: RTPI Chartered,391100,Construction Buildings
South Lakeland District Council,http://opendatacommunities.org/id/district-council/south-lakeland,31/12/2017,Development Strategy,Central Services,http://opendatacommunities.org/def/concept/finance/sercop/objective/102,RTPI SUBSCRIPTIONS,,11/12/2017,73588,300,0,2018 Subscription: RTPI Chartered,391100,Construction Buildings
South Lakeland District Council,http://opendatacommunities.org/id/district-council/south-lakeland,31/12/2017,Development Strategy,Central Services,http://opendatacommunities.org/def/concept/finance/sercop/objective/102,CUMBRIA COUNTY COUNCIL,,13/12/2017,73590,400,0,SLDC contribution to CPTS 2017-18,908000,Public Bodies Council support services
South Lakeland District Council,http://opendatacommunities.org/id/district-council/south-lakeland,31/12/2017,Business Support Community Services,Cultural Environmental Regulatory & Planning Services,http://opendatacommunities.org/def/concept/finance/sercop/objective/104,Arboricultural Association,,13/12/2017,73597,172.9,0,ARB Membership Subscription due 1st,181300,Environment Land Protection
South Lakeland District Council,http://opendatacommunities.org/id/district-council/south-lakeland,31/12/2017,Development Implementation,Central Services,http://opendatacommunities.org/def/concept/finance/sercop/objective/102,LAMBERT SMITH HAMPTON GROUP,2521225,13/12/2017,73600,750,0,Kendal Town Hall - Stonework Repairs,999999,Unclassifiable
South Lakeland District Council,http://opendatacommunities.org/id/district-council/south-lakeland,31/12/2017,Cemeteries Office,Cultural Environmental Regulatory & Planning Services,http://opendatacommunities.org/def/concept/finance/sercop/objective/104,COOPER ENGRAVING,,13/12/2017,73602,64,0,Braas plaque: LEE (Ford Pk. Kendal,102400,Building Signage
South Lakeland District Council,http://opendatacommunities.org/id/district-council/south-lakeland,31/12/2017,Financial Services,Non-Service Payments,,BUSY BEES BENEFITS LTD,6758298,11/12/2017,73603,710,0,Busy Bees child care vouchers. based on,202100,Financial Services Subscriptions
South Lakeland District Council,http://opendatacommunities.org/id/district-council/south-lakeland,31/12/2017,Financial Services,Central Services,http://opendatacommunities.org/def/concept/finance/sercop/objective/102,BUSY BEES BENEFITS LTD,6758298,11/12/2017,73604,24.85,0,Busy Bees child care voucher service,202100,Financial Services Subscriptions
South Lakeland District Council,http://opendatacommunities.org/id/district-council/south-lakeland,31/12/2017,Financial Services,Non-Service Payments,,COMPUTERSHARE VOUCHER SERVICES LTD,4968447,11/12/2017,73605,734.93,0,Computershare child care vouchers. New,202100,Financial Services Subscriptions
South Lakeland District Council,http://opendatacommunities.org/id/district-council/south-lakeland,31/12/2017,Transport,Internal Trading Accounts,,B GREGG,,11/12/2017,73606,40,0,Uplift T640 VOC,182010,Environment Abandoned Vehicles
South Lakeland District Council,http://opendatacommunities.org/id/district-council/south-lakeland,31/12/2017,Business Support Community Services,Housing Services,http://opendatacommunities.org/def/concept/finance/sercop/objective/108,Landlord,,11/12/2017,73610,1299.99,0,"Deposit for Apartment 2, ",202000,Financial Services Rents
South Lakeland District Council,http://opendatacommunities.org/id/district-council/south-lakeland,31/12/2017,Business Support Community Services,Housing Services,http://opendatacommunities.org/def/concept/finance/sercop/objective/108,Landlord,,11/12/2017,73611,400,0,Monthly rent ,250010,Housing Letting Agents
South Lakeland District Council,http://opendatacommunities.org/id/district-council/south-lakeland,31/12/2017,Business Support Community Services,Housing Services,http://opendatacommunities.org/def/concept/finance/sercop/objective/108,Landlord,,11/12/2017,73612,400,0,Monthly rent ,250000,Housing
South Lakeland District Council,http://opendatacommunities.org/id/district-council/south-lakeland,31/12/2017,Policy & Partnerships,Central Services,http://opendatacommunities.org/def/concept/finance/sercop/objective/102,CASTLERIGG CONSULTING,6747285,18/12/2017,73615,750,0,Strategic Direction support for IT,159999,Consultancy Not Elsewhere Classified
South Lakeland District Council,http://opendatacommunities.org/id/district-council/south-lakeland,31/12/2017,Business Support Community Services,Internal Trading Accounts,,HYDRAIR TRUCK & TRAILER PARTS LTD,,13/12/2017,73616,17.33,0,Parts,381500,Vehicle Mgt Parts
South Lakeland District Council,http://opendatacommunities.org/id/district-council/south-lakeland,31/12/2017,Business Support Community Services,Cultural Environmental Regulatory & Planning Services,http://opendatacommunities.org/def/concept/finance/sercop/objective/104,RESOLUTION DATA MANAGEMENT LTD,1910045,13/12/2017,73617,583.2,0,BUILDING CONTROL ANNUAL SUBSCRIPTION FOR,271600,ICT Software Customised & Bespoke
South Lakeland District Council,http://opendatacommunities.org/id/district-council/south-lakeland,31/12/2017,Business Support Community Services,Cultural Environmental Regulatory & Planning Services,http://opendatacommunities.org/def/concept/finance/sercop/objective/104,RESOLUTION DATA MANAGEMENT LTD,1910045,13/12/2017,73617,145.8,0,BUILDING CONTROL ANNUAL SUBSCRIPTION FOR,271600,ICT Software Customised & Bespoke
South Lakeland District Council,http://opendatacommunities.org/id/district-council/south-lakeland,31/12/2017,Business Support Community Services,Cultural Environmental Regulatory & Planning Services,http://opendatacommunities.org/def/concept/finance/sercop/objective/104,THOMSON REUTERS (PROFESSIONAL) UK LTD,1679046,13/12/2017,73618,1771,0,ENCYCLOPEDIA OF PLANNING LAW YEAR AND,202100,Financial Services Subscriptions
South Lakeland District Council,http://opendatacommunities.org/id/district-council/south-lakeland,31/12/2017,Social Enterprise Admin,Central Services,http://opendatacommunities.org/def/concept/finance/sercop/objective/102,WOOF'S OF SEDBERGH,,13/12/2017,73619,180,0,MINI BUS SITE VISITS FOR MEMBERS RE,361300,Public Transport Passenger Transport
South Lakeland District Council,http://opendatacommunities.org/id/district-council/south-lakeland,31/12/2017,Business Support Community Services,Internal Trading Accounts,,FAUN ZOELLER (UK) LTD,751804,13/12/2017,73620,251.2,0,Filters,381400,Vehicle Mgt Maintenance
South Lakeland District Council,http://opendatacommunities.org/id/district-council/south-lakeland,31/12/2017,Social Enterprise Admin,Central Services,http://opendatacommunities.org/def/concept/finance/sercop/objective/102,WOOF'S OF SEDBERGH,,13/12/2017,73621,180,0,MINI BUS SITE VISITS FOR MEMBERS RE,361300,Public Transport Passenger Transport
South Lakeland District Council,http://opendatacommunities.org/id/district-council/south-lakeland,31/12/2017,Business Support Community Services,Internal Trading Accounts,,BRIAN ARMISTEAD LTD T/A SINKFALL RECYCLI,4133280,13/12/2017,73622,543.66,0,Green waste tipping - 2017/18,391110,Construction Buildings Construction
South Lakeland District Council,http://opendatacommunities.org/id/district-council/south-lakeland,31/12/2017,Business Support Community Services,Internal Trading Accounts,,H WICKS (LINDAL) LTD,754590,13/12/2017,73623,1914.24,0,"Gate fees, handling, transport & baling",182012,Environment Waste Management Recycling
South Lakeland District Council,http://opendatacommunities.org/id/district-council/south-lakeland,31/12/2017,Social Enterprise Admin,Central Services,http://opendatacommunities.org/def/concept/finance/sercop/objective/102,WOOF'S OF SEDBERGH,,13/12/2017,73624,180,0,MINI BUS SITE VISITS FOR MEMBERS RE,361300,Public Transport Passenger Transport
South Lakeland District Council,http://opendatacommunities.org/id/district-council/south-lakeland,31/12/2017,Business Support Community Services,Internal Trading Accounts,,TPS Preston,,13/12/2017,73625,36.22,0,Parts,381400,Vehicle Mgt Maintenance
South Lakeland District Council,http://opendatacommunities.org/id/district-council/south-lakeland,31/12/2017,Business Support Community Services,Internal Trading Accounts,,EK MOTOR FACTORS LTD,838524,13/12/2017,73626,25.92,0,Parts,381400,Vehicle Mgt Maintenance
South Lakeland District Council,http://opendatacommunities.org/id/district-council/south-lakeland,31/12/2017,Business Support Community Services,Internal Trading Accounts,,GARWOOD EUROPE LTD,4333504,13/12/2017,73627,109.65,0,Switch,182011,Environment Waste Management Consumables
South Lakeland District Council,http://opendatacommunities.org/id/district-council/south-lakeland,31/12/2017,Business Support Community Services,Internal Trading Accounts,,WasteParts UK Ltd,,13/12/2017,73629,164.5,0,Switch,381500,Vehicle Mgt Parts
South Lakeland District Council,http://opendatacommunities.org/id/district-council/south-lakeland,31/12/2017,Business Support Community Services,Internal Trading Accounts,,AINSWORTH'S GARAGE,,13/12/2017,73632,39,0,Repair SL032,381400,Vehicle Mgt Maintenance
South Lakeland District Council,http://opendatacommunities.org/id/district-council/south-lakeland,31/12/2017,Financial Services,Central Services,http://opendatacommunities.org/def/concept/finance/sercop/objective/102,SOCIETY OF DISTRICT COUNCIL TREASURERS,,13/12/2017,73634,200,0,Inv  145-201718 Subscriptions in,159999,Consultancy Not Elsewhere Classified
South Lakeland District Council,http://opendatacommunities.org/id/district-council/south-lakeland,31/12/2017,Printing Section,Central Services,http://opendatacommunities.org/def/concept/finance/sercop/objective/102,ROSEFOX PAPER LIMITED,1655083,18/12/2017,73636,259.14,0,Paper One A3 80gsm,341000,Stationery Paper
South Lakeland District Council,http://opendatacommunities.org/id/district-council/south-lakeland,31/12/2017,ICT Group,Central Services,http://opendatacommunities.org/def/concept/finance/sercop/objective/102,VODAFONE LIMITED,1471587,20/12/2017,73637,4533.33,0,Mobile phone call costs for 2017/18,271800,ICT Telecommunications Mobile
South Lakeland District Council,http://opendatacommunities.org/id/district-council/south-lakeland,31/12/2017,Printing Section,Central Services,http://opendatacommunities.org/def/concept/finance/sercop/objective/102,ROSEFOX PAPER LIMITED,1655083,13/12/2017,73638,417.3,0,Revive 100% Recycled Silk 170gsm A3,341000,Stationery Paper
South Lakeland District Council,http://opendatacommunities.org/id/district-council/south-lakeland,31/12/2017,Development Implementation,Culture and Related Serv,http://opendatacommunities.org/def/concept/finance/sercop/objective/104,LAMBERT SMITH HAMPTON GROUP,2521225,13/12/2017,73639,3000,0,Kendal Leisure Centre Fees,999999,Unclassifiable
South Lakeland District Council,http://opendatacommunities.org/id/district-council/south-lakeland,31/12/2017,Customer Services,Cultural Environmental Regulatory & Planning Services,http://opendatacommunities.org/def/concept/finance/sercop/objective/104,RIGHT 2 WORK,,13/12/2017,73642,4045,0,bulky items collected,321010,Social Care Adult Advice & Counselling
South Lakeland District Council,http://opendatacommunities.org/id/district-council/south-lakeland,31/12/2017,Democratic and Member Services,Cultural Environmental Regulatory & Planning Services,http://opendatacommunities.org/def/concept/finance/sercop/objective/104,BURTON-IN-KENDAL PARISH COUNCIL,,13/12/2017,73643,500,0,Donation to fund the Parish Lengthmans,908000,Public Bodies Council support services
South Lakeland District Council,http://opendatacommunities.org/id/district-council/south-lakeland,31/12/2017,Business Support Community Services,Cultural Environmental Regulatory & Planning Services,http://opendatacommunities.org/def/concept/finance/sercop/objective/104,Ulverston Methodist Church,,13/12/2017,73645,26.25,0,Bedford Room Hire. Low Furness LAP,192110,Facilities Room Hire
South Lakeland District Council,http://opendatacommunities.org/id/district-council/south-lakeland,31/12/2017,Business Support Community Services,Internal Trading Accounts,,AINSWORTH'S GARAGE,,13/12/2017,73646,29.25,0,Repair KX14 KHT,381400,Vehicle Mgt Maintenance
South Lakeland District Council,http://opendatacommunities.org/id/district-council/south-lakeland,31/12/2017,Business Support Community Services,Internal Trading Accounts,,AINSWORTH'S GARAGE,,13/12/2017,73647,29.25,0,Repair KX14 KHT,381400,Vehicle Mgt Maintenance
South Lakeland District Council,http://opendatacommunities.org/id/district-council/south-lakeland,31/12/2017,Business Support Community Services,Transport Planning Policy,http://opendatacommunities.org/def/concept/finance/sercop/objective/107,ARCO LIMITED,133804,13/12/2017,73648,45.48,0,Cleaning materials,141100,Clothing Protective
South Lakeland District Council,http://opendatacommunities.org/id/district-council/south-lakeland,31/12/2017,Business Support Community Services,Internal Trading Accounts,,ARCO LIMITED,133804,13/12/2017,73648,454.04,0,Cleaning materials,141100,Clothing Protective
South Lakeland District Council,http://opendatacommunities.org/id/district-council/south-lakeland,31/12/2017,Revenues and Benefits,Central Services,http://opendatacommunities.org/def/concept/finance/sercop/objective/102,PITNEY BOWES LTD,182037,18/12/2017,73649,419.45,0,2017/18  Stationery & office supplies,301200,Mail Services� Postage
South Lakeland District Council,http://opendatacommunities.org/id/district-council/south-lakeland,31/12/2017,Business Support Community Services,Internal Trading Accounts,,AINSWORTH'S GARAGE,,13/12/2017,73650,29.25,0,Repair KX14 KHT,381400,Vehicle Mgt Maintenance
South Lakeland District Council,http://opendatacommunities.org/id/district-council/south-lakeland,31/12/2017,Business Support Community Services,Internal Trading Accounts,,ARCO LIMITED,133804,13/12/2017,73652,21.38,0,Cleaning materials,141100,Clothing Protective
South Lakeland District Council,http://opendatacommunities.org/id/district-council/south-lakeland,31/12/2017,Business Support Community Services,Internal Trading Accounts,,AINSWORTH'S GARAGE,,13/12/2017,73653,213.75,0,Repair KX14 KHT,381400,Vehicle Mgt Maintenance
South Lakeland District Council,http://opendatacommunities.org/id/district-council/south-lakeland,31/12/2017,Revenues and Benefits,Central Services,http://opendatacommunities.org/def/concept/finance/sercop/objective/102,IRRV (L & C BRANCH),,18/12/2017,73654,50,0,Workshop - Dealing with vulnerability,201700,Financial Services Grants
South Lakeland District Council,http://opendatacommunities.org/id/district-council/south-lakeland,31/12/2017,Revenues and Benefits,Central Services,http://opendatacommunities.org/def/concept/finance/sercop/objective/102,MERITEC LTD,3224622,18/12/2017,73655,279,0,RAB Processing Contract and Agency Staff,391200,Construction Engineering
South Lakeland District Council,http://opendatacommunities.org/id/district-council/south-lakeland,31/12/2017,Revenues and Benefits,Central Services,http://opendatacommunities.org/def/concept/finance/sercop/objective/102,ROYAL MAIL GROUP PLC,,18/12/2017,73656,57.31,0,Postal Charges a/c 0055114000  (2017/18),301200,Mail Services� Postage
South Lakeland District Council,http://opendatacommunities.org/id/district-council/south-lakeland,31/12/2017,Revenues and Benefits,SLDC as Agent,,ROYAL MAIL GROUP PLC,,18/12/2017,73657,2117.1,0,Postal Charges a/c 0198123013 (2017-18),301200,Mail Services� Postage
South Lakeland District Council,http://opendatacommunities.org/id/district-council/south-lakeland,31/12/2017,Development Implementation,SLDC as Agent,,PS BUSINESS MATTERS,8147185,18/12/2017,73659,2000,0,Kendal Futures Programme Support,151900,Consultancy Management
South Lakeland District Council,http://opendatacommunities.org/id/district-council/south-lakeland,31/12/2017,Development Implementation,Cultural Environmental Regulatory & Planning Services,http://opendatacommunities.org/def/concept/finance/sercop/objective/104,NEWSQUEST MEDIA GROUP LTD,3102566,18/12/2017,73661,248.38,0,World Heritage status advert,191000,Facilities Advertising
South Lakeland District Council,http://opendatacommunities.org/id/district-council/south-lakeland,31/12/2017,Business Support Community Services,Housing Services,http://opendatacommunities.org/def/concept/finance/sercop/objective/108,Landlord,,13/12/2017,73662,1679.76,0,"Deposit for Ullswater Road, Kendal",250000,Housing
South Lakeland District Council,http://opendatacommunities.org/id/district-council/south-lakeland,31/12/2017,Business Support Community Services,Housing Services,http://opendatacommunities.org/def/concept/finance/sercop/objective/108,Ashberry Recruitment,7202591,18/12/2017,73665,352.25,0,"Agency temp, supprort worker at TVF",261300,HR Recruitment & Assessment
South Lakeland District Council,http://opendatacommunities.org/id/district-council/south-lakeland,31/12/2017,Transport,Internal Trading Accounts,,AUTOKONTROL LIMITED,,13/12/2017,73666,49.5,0,Tubes,111110,Catering Equipment & Utensils
South Lakeland District Council,http://opendatacommunities.org/id/district-council/south-lakeland,31/12/2017,Development Implementation,Central Services,http://opendatacommunities.org/def/concept/finance/sercop/objective/102,CUMBRIA WASTE RECYCLING LTD,3162439,18/12/2017,73667,40.35,0,Langstone House 360ltr Wheelie Bin,182012,Environment Waste Management Recycling
South Lakeland District Council,http://opendatacommunities.org/id/district-council/south-lakeland,31/12/2017,Development Implementation,Central Services,http://opendatacommunities.org/def/concept/finance/sercop/objective/102,CUMBRIA WASTE RECYCLING LTD,3162439,18/12/2017,73668,278.82,0,South Lakeland House bin & skip emptying,182012,Environment Waste Management Recycling
South Lakeland District Council,http://opendatacommunities.org/id/district-council/south-lakeland,31/12/2017,Kendal Town Hall,Cultural Environmental Regulatory & Planning Services,http://opendatacommunities.org/def/concept/finance/sercop/objective/104,CUMBRIA WASTE RECYCLING LTD,3162439,18/12/2017,73669,179.2,0,Weekly collection of mixed waste bins,182012,Environment Waste Management Recycling
South Lakeland District Council,http://opendatacommunities.org/id/district-council/south-lakeland,31/12/2017,Lake Wardens,Cultural Environmental Regulatory & Planning Services,http://opendatacommunities.org/def/concept/finance/sercop/objective/104,CUMBRIA WASTE RECYCLING LTD,3162439,18/12/2017,73671,265.88,0,Monthly collection of Refuse Wheelie,182012,Environment Waste Management Recycling
South Lakeland District Council,http://opendatacommunities.org/id/district-council/south-lakeland,31/12/2017,Business Support Community Services,Housing Services,http://opendatacommunities.org/def/concept/finance/sercop/objective/108,Landlord,,13/12/2017,73672,600,0,Monthly rent ,250000,Housing
South Lakeland District Council,http://opendatacommunities.org/id/district-council/south-lakeland,31/12/2017,Development Implementation,Central Services,http://opendatacommunities.org/def/concept/finance/sercop/objective/102,CUMBRIA WASTE RECYCLING LTD,3162439,18/12/2017,73673,54.68,0,Ulverston Town Hall Queen Street 1,182012,Environment Waste Management Recycling
South Lakeland District Council,http://opendatacommunities.org/id/district-council/south-lakeland,31/12/2017,Business Support Community Services,Housing Services,http://opendatacommunities.org/def/concept/finance/sercop/objective/108,Landlord,,13/12/2017,73674,520,0,Monthly rent ,202000,Financial Services Rents
South Lakeland District Council,http://opendatacommunities.org/id/district-council/south-lakeland,31/12/2017,Social Enterprise Admin,Highways & Transport Services,http://opendatacommunities.org/def/concept/finance/sercop/objective/107,CUMBRIA WASTE RECYCLING LTD,3162439,18/12/2017,73675,51.56,0,Westmorland Multistorey 60 ltr bin April,182012,Environment Waste Management Recycling
South Lakeland District Council,http://opendatacommunities.org/id/district-council/south-lakeland,31/12/2017,Lake Wardens,Cultural Environmental Regulatory & Planning Services,http://opendatacommunities.org/def/concept/finance/sercop/objective/104,CUMBRIA WASTE RECYCLING LTD,3162439,18/12/2017,73676,246.08,0,Monthly collection of Refuse Wheelie,182012,Environment Waste Management Recycling
South Lakeland District Council,http://opendatacommunities.org/id/district-council/south-lakeland,31/12/2017,Development Implementation,Cultural Environmental Regulatory & Planning Services,http://opendatacommunities.org/def/concept/finance/sercop/objective/104,CUMBRIA WASTE RECYCLING LTD,3162439,18/12/2017,73677,131.85,0,"Waste Collection at Highgate, Kendal",182012,Environment Waste Management Recycling
South Lakeland District Council,http://opendatacommunities.org/id/district-council/south-lakeland,31/12/2017,Human Resources,Central Services,http://opendatacommunities.org/def/concept/finance/sercop/objective/102,THE QUAKER TAPESTRY KENDAL LTD,,18/12/2017,73678,383.4,0,Room Hire ,291400,Arts & Leisure Services Sport & Fitness
South Lakeland District Council,http://opendatacommunities.org/id/district-council/south-lakeland,31/12/2017,Social Enterprise Admin,SLDC as Agent,,PAY BY PHONE (PAYPOINT),,18/12/2017,73679,379.67,0,Pay-by-phone charges from 1 April 2017,351400,Street & Traffic Traffic Control
South Lakeland District Council,http://opendatacommunities.org/id/district-council/south-lakeland,31/12/2017,ICT Group,Central Services,http://opendatacommunities.org/def/concept/finance/sercop/objective/102,TOUCHDOWN OFFICES LTD,4844444,18/12/2017,73680,65,0,Missing pager used for emergency,271700,ICT Telecommunications Fixed
South Lakeland District Council,http://opendatacommunities.org/id/district-council/south-lakeland,31/12/2017,Lake Wardens,Cultural Environmental Regulatory & Planning Services,http://opendatacommunities.org/def/concept/finance/sercop/objective/104,ROYAL YACHTING ASSOCIATION,878357,18/12/2017,73682,269.17,0,Annual Recognition Fee - Renewable,202100,Financial Services Subscriptions
South Lakeland District Council,http://opendatacommunities.org/id/district-council/south-lakeland,31/12/2017,Development Implementation,Planning and Development,,LAMBERT SMITH HAMPTON GROUP,2521225,13/12/2017,73684,20395,0,New Road and Beezon Fields Development,999999,Unclassifiable
South Lakeland District Council,http://opendatacommunities.org/id/district-council/south-lakeland,31/12/2017,Community & Housing Group,Housing Services,http://opendatacommunities.org/def/concept/finance/sercop/objective/108,GROWING CONCERNS LTD,,13/12/2017,73685,1029.89,0,Handy Person Scheme,391200,Construction Engineering
South Lakeland District Council,http://opendatacommunities.org/id/district-council/south-lakeland,31/12/2017,Financial Services,Central Services,http://opendatacommunities.org/def/concept/finance/sercop/objective/102,Eventus Legal Recruitment,,13/12/2017,73691,7461.2,0,Solicitor,261300,HR Recruitment & Assessment
South Lakeland District Council,http://opendatacommunities.org/id/district-council/south-lakeland,31/12/2017,Leisure and Wellbeing,Cultural Environmental Regulatory & Planning Services,http://opendatacommunities.org/def/concept/finance/sercop/objective/104,NETWORK RAIL COMMERCIAL PROPERTY,,18/12/2017,73693,148,0,"Rent for footbridge, path and shrubbery",191700,Facilities Property Management
South Lakeland District Council,http://opendatacommunities.org/id/district-council/south-lakeland,31/12/2017,Leisure and Wellbeing,Cultural Environmental Regulatory & Planning Services,http://opendatacommunities.org/def/concept/finance/sercop/objective/104,NETWORK RAIL COMMERCIAL PROPERTY,,18/12/2017,73694,112.37,0,Private gate for access and water mains,191700,Facilities Property Management
South Lakeland District Council,http://opendatacommunities.org/id/district-council/south-lakeland,31/12/2017,Social Enterprise Admin,Cultural Environmental Regulatory & Planning Services,http://opendatacommunities.org/def/concept/finance/sercop/objective/104,THOMSON REUTERS (PROFESSIONAL) UK LTD,1679046,18/12/2017,73695,64,0,PLANNING CONT THEIR REINFORCEMENT REL 23,202100,Financial Services Subscriptions
South Lakeland District Council,http://opendatacommunities.org/id/district-council/south-lakeland,31/12/2017,Development Strategy,Cultural Environmental Regulatory & Planning Services,http://opendatacommunities.org/def/concept/finance/sercop/objective/104,Jeremy Benn Associates t/aJBA Consulting,3246693,18/12/2017,73700,10102,0,Cumbria Strategic Flood Risk Assessment,152200,Consultancy Technical & Feasibility
South Lakeland District Council,http://opendatacommunities.org/id/district-council/south-lakeland,31/12/2017,Business Support Community Services,Cultural Environmental Regulatory & Planning Services,http://opendatacommunities.org/def/concept/finance/sercop/objective/104,MOGO UK,3091301,18/12/2017,73701,332.9,0,Hackney Carriage Door Signs Vinyl,281400,Legal Services Specialist Support
South Lakeland District Council,http://opendatacommunities.org/id/district-council/south-lakeland,31/12/2017,Development Implementation,Highways & Transport Services,http://opendatacommunities.org/def/concept/finance/sercop/objective/107,FGH SECURITY,,18/12/2017,73703,820.05,0,Security Services for South Lakeland,192200,Facilities Security
South Lakeland District Council,http://opendatacommunities.org/id/district-council/south-lakeland,31/12/2017,Revenues and Benefits,Central Services,http://opendatacommunities.org/def/concept/finance/sercop/objective/102,HER MAJESTY'S COURTS & TRIBUNAL SERVICE,,18/12/2017,73704,135,0,2017/18  C Tax  Liability Orders,908001,Public Bodies Other Public Bodies
South Lakeland District Council,http://opendatacommunities.org/id/district-council/south-lakeland,31/12/2017,Revenues and Benefits,Central Services,http://opendatacommunities.org/def/concept/finance/sercop/objective/102,HER MAJESTY'S COURTS & TRIBUNAL SERVICE,,18/12/2017,73704,303,0,2017/18  C Tax  Liability Orders,908001,Public Bodies Other Public Bodies
South Lakeland District Council,http://opendatacommunities.org/id/district-council/south-lakeland,31/12/2017,Revenues and Benefits,Central Services,http://opendatacommunities.org/def/concept/finance/sercop/objective/102,HER MAJESTY'S COURTS & TRIBUNAL SERVICE,,18/12/2017,73704,2373,0,2017/18  C Tax  Liability Orders,908001,Public Bodies Other Public Bodies
South Lakeland District Council,http://opendatacommunities.org/id/district-council/south-lakeland,31/12/2017,Social Enterprise Admin,Cultural Environmental Regulatory & Planning Services,http://opendatacommunities.org/def/concept/finance/sercop/objective/104,NEWSQUEST MEDIA GROUP LTD,3102566,18/12/2017,73708,262.08,0,PUBLIC NOTICES FOR PLANNING 1 APRIL - 31,191000,Facilities Advertising
South Lakeland District Council,http://opendatacommunities.org/id/district-council/south-lakeland,31/12/2017,Social Enterprise Admin,Culture and Related Serv,http://opendatacommunities.org/def/concept/finance/sercop/objective/104,HAGS-SMP Ltd,908021,18/12/2017,73710,9929.68,0,To supply and install Broadgate Meadow,331000,Sports Playground Equipment
South Lakeland District Council,http://opendatacommunities.org/id/district-council/south-lakeland,31/12/2017,Kendal Town Hall,Central Services,http://opendatacommunities.org/def/concept/finance/sercop/objective/102,CRUDEN PROPERTY SERVICES LTD,3851237,18/12/2017,73711,250,0,Cleaning and removal of Kendal Town,391111,Construction Buildings Repair & Mtce
South Lakeland District Council,http://opendatacommunities.org/id/district-council/south-lakeland,31/12/2017,Financial Services,Central Services,http://opendatacommunities.org/def/concept/finance/sercop/objective/102,CIPP,4227998,18/12/2017,73712,135,0,Membership 01/02/2018 to 31/01/2019,261500,HR Training & Conferences
South Lakeland District Council,http://opendatacommunities.org/id/district-council/south-lakeland,31/12/2017,Business Support Community Services,Internal Trading Accounts,,RIBBLESDALE AUTO ELECTRICS 1992 LTD,2732686,18/12/2017,73713,108.52,0,Parts,381500,Vehicle Mgt Parts
South Lakeland District Council,http://opendatacommunities.org/id/district-council/south-lakeland,31/12/2017,Environment and Housing,Housing Services,http://opendatacommunities.org/def/concept/finance/sercop/objective/108,LAMBERT SMITH HAMPTON GROUP,2521225,18/12/2017,73714,14259,0,LDSH Support Role - Community Housing,999999,Unclassifiable
South Lakeland District Council,http://opendatacommunities.org/id/district-council/south-lakeland,31/12/2017,Development Implementation,External Trading Accounts,,COLIN BRISCOE CONSTRUCTION LTD,2884282,18/12/2017,73722,2158.99,0,"Additional works at New Road, Kendal",191700,Facilities Property Management
South Lakeland District Council,http://opendatacommunities.org/id/district-council/south-lakeland,31/12/2017,Policy & Partnerships,Central Services,http://opendatacommunities.org/def/concept/finance/sercop/objective/102,MERITEC LTD,3224622,18/12/2017,73723,25000,0,MPLS Data Link (SLDC and EDC) to,391200,Construction Engineering
South Lakeland District Council,http://opendatacommunities.org/id/district-council/south-lakeland,31/12/2017,Business Support Community Services,Internal Trading Accounts,,M G D LTD,,18/12/2017,73724,35,0,MOTs 01/04/17 - 31/03/18,381400,Vehicle Mgt Maintenance
South Lakeland District Council,http://opendatacommunities.org/id/district-council/south-lakeland,31/12/2017,Business Support Community Services,Internal Trading Accounts,,SOLWAY DAF,1393710,18/12/2017,73725,220.3,0,Parts,381000,Vehicle Mgt Commercial
South Lakeland District Council,http://opendatacommunities.org/id/district-council/south-lakeland,31/12/2017,Business Support Community Services,Internal Trading Accounts,,J R RICHARDSON LTD,2225792,18/12/2017,73726,154.83,0,Vehicle washing consumables,381500,Vehicle Mgt Parts
South Lakeland District Council,http://opendatacommunities.org/id/district-council/south-lakeland,31/12/2017,Business Support Community Services,Internal Trading Accounts,,Romaquip UK,,18/12/2017,73727,3996,0,RRV vehicle hire,381000,Vehicle Mgt Commercial
South Lakeland District Council,http://opendatacommunities.org/id/district-council/south-lakeland,31/12/2017,Business Support Community Services,Internal Trading Accounts,,ARCO LIMITED,133804,18/12/2017,73728,467.35,0,Cleaning materials,141100,Clothing Protective
South Lakeland District Council,http://opendatacommunities.org/id/district-council/south-lakeland,31/12/2017,Business Support Community Services,Internal Trading Accounts,,TPS Preston,,18/12/2017,73729,23.97,0,Parts,381400,Vehicle Mgt Maintenance
South Lakeland District Council,http://opendatacommunities.org/id/district-council/south-lakeland,31/12/2017,Business Support Community Services,Internal Trading Accounts,,EK MOTOR FACTORS LTD,838524,20/12/2017,73730,19.62,0,Parts,381400,Vehicle Mgt Maintenance
South Lakeland District Council,http://opendatacommunities.org/id/district-council/south-lakeland,31/12/2017,Business Support Community Services,Internal Trading Accounts,,EK MOTOR FACTORS LTD,838524,20/12/2017,73731,62.84,0,Parts,381400,Vehicle Mgt Maintenance
South Lakeland District Council,http://opendatacommunities.org/id/district-council/south-lakeland,31/12/2017,Business Support Community Services,Internal Trading Accounts,,EK MOTOR FACTORS LTD,838524,20/12/2017,73732,-9.81,0,Parts,381400,Vehicle Mgt Maintenance
South Lakeland District Council,http://opendatacommunities.org/id/district-council/south-lakeland,31/12/2017,Business Support Community Services,Internal Trading Accounts,,DENNIS EAGLE LTD,3794455,20/12/2017,73733,96.34,0,Parts,381300,Vehicle Mgt Industrial
South Lakeland District Council,http://opendatacommunities.org/id/district-council/south-lakeland,31/12/2017,Business Support Community Services,Internal Trading Accounts,,DENNIS EAGLE LTD,3794455,20/12/2017,73734,193.56,0,Parts,381300,Vehicle Mgt Industrial
South Lakeland District Council,http://opendatacommunities.org/id/district-council/south-lakeland,31/12/2017,Business Support Community Services,Internal Trading Accounts,,Platform Sales & Hire Ltd,,20/12/2017,73735,8050,0,New Skyjack SJ16,389999,Vehicle Mgt Not Else Class
South Lakeland District Council,http://opendatacommunities.org/id/district-council/south-lakeland,31/12/2017,Business Support Community Services,Internal Trading Accounts,,ETS UK LIMITED,2588203,20/12/2017,73736,614,0,ECU,381500,Vehicle Mgt Parts
South Lakeland District Council,http://opendatacommunities.org/id/district-council/south-lakeland,31/12/2017,Business Support Community Services,Internal Trading Accounts,,FST CONSUMABLES LTD,1342012,20/12/2017,73737,147.05,0,Consumables 01/04/17- 31/03/18,101600,Building Hand Tools
South Lakeland District Council,http://opendatacommunities.org/id/district-council/south-lakeland,31/12/2017,Cemeteries Office,Cultural Environmental Regulatory & Planning Services,http://opendatacommunities.org/def/concept/finance/sercop/objective/104,CUMBRIA WASTE RECYCLING LTD,3162439,20/12/2017,73738,40.35,0,Cemetery Waste Bin Emptying 2017-18,182012,Environment Waste Management Recycling
South Lakeland District Council,http://opendatacommunities.org/id/district-council/south-lakeland,31/12/2017,Cemeteries Office,Cultural Environmental Regulatory & Planning Services,http://opendatacommunities.org/def/concept/finance/sercop/objective/104,CUMBRIA WASTE RECYCLING LTD,3162439,20/12/2017,73739,34.85,0,Cemetery Waste Bin Emptying 2017-18,182012,Environment Waste Management Recycling
South Lakeland District Council,http://opendatacommunities.org/id/district-council/south-lakeland,31/12/2017,Cemeteries Office,Cultural Environmental Regulatory & Planning Services,http://opendatacommunities.org/def/concept/finance/sercop/objective/104,CUMBRIA WASTE RECYCLING LTD,3162439,20/12/2017,73740,66.8,0,Cemetery Waste Bin Emptying 2017-18,182012,Environment Waste Management Recycling
South Lakeland District Council,http://opendatacommunities.org/id/district-council/south-lakeland,31/12/2017,Cemeteries Office,Cultural Environmental Regulatory & Planning Services,http://opendatacommunities.org/def/concept/finance/sercop/objective/104,CUMBRIA WASTE RECYCLING LTD,3162439,20/12/2017,73742,52.32,0,Cemetery Waste Bin Emptying 2017-18,182012,Environment Waste Management Recycling
South Lakeland District Council,http://opendatacommunities.org/id/district-council/south-lakeland,31/12/2017,Cemeteries Office,Cultural Environmental Regulatory & Planning Services,http://opendatacommunities.org/def/concept/finance/sercop/objective/104,CUMBRIA WASTE RECYCLING LTD,3162439,20/12/2017,73743,108.4,0,Cemetery Waste Bin Emptying 2017-18,182012,Environment Waste Management Recycling
South Lakeland District Council,http://opendatacommunities.org/id/district-council/south-lakeland,31/12/2017,Revenues and Benefits,Non-Service Payments,,Ulverston BID Company Ltd,9761005,20/12/2017,73747,8596.79,0,Collection figures for November 2017,201700,Financial Services Grants
South Lakeland District Council,http://opendatacommunities.org/id/district-council/south-lakeland,31/12/2017,Lake Wardens,Cultural Environmental Regulatory & Planning Services,http://opendatacommunities.org/def/concept/finance/sercop/objective/104,RICKERBY LTD,4985069,20/12/2017,73749,65.32,0,Replacement front offside mud wing for,381000,Vehicle Mgt Commercial
South Lakeland District Council,http://opendatacommunities.org/id/district-council/south-lakeland,31/12/2017,Lake Wardens,Cultural Environmental Regulatory & Planning Services,http://opendatacommunities.org/def/concept/finance/sercop/objective/104,JONATHAN B JACKSON LTD,7762503,20/12/2017,73750,300,0,Consultancy Fees in relation to,391110,Construction Buildings Construction
South Lakeland District Council,http://opendatacommunities.org/id/district-council/south-lakeland,31/12/2017,Business Support Community Services,Housing Services,http://opendatacommunities.org/def/concept/finance/sercop/objective/108,Landlord,8672920,18/12/2017,73760,400,0,Monthly rent ,202000,Financial Services Rents
South Lakeland District Council,http://opendatacommunities.org/id/district-council/south-lakeland,31/12/2017,Business Support Community Services,Housing Services,http://opendatacommunities.org/def/concept/finance/sercop/objective/108,Landlord,7803122,18/12/2017,73761,500,0,Monthly rent ,250000,Housing
South Lakeland District Council,http://opendatacommunities.org/id/district-council/south-lakeland,31/12/2017,Business Support Community Services,Housing Services,http://opendatacommunities.org/def/concept/finance/sercop/objective/108,Landlord,,18/12/2017,73762,410,0,Monthly rent ,202000,Financial Services Rents
South Lakeland District Council,http://opendatacommunities.org/id/district-council/south-lakeland,31/12/2017,Business Support Community Services,Housing Services,http://opendatacommunities.org/def/concept/finance/sercop/objective/108,Landlord,,18/12/2017,73763,410,0,Monthly rent ,202000,Financial Services Rents
South Lakeland District Council,http://opendatacommunities.org/id/district-council/south-lakeland,31/12/2017,Business Support Community Services,Housing Services,http://opendatacommunities.org/def/concept/finance/sercop/objective/108,Landlord,,18/12/2017,73764,370,0,Monthly rent ,202000,Financial Services Rents
South Lakeland District Council,http://opendatacommunities.org/id/district-council/south-lakeland,31/12/2017,Business Support Community Services,Housing Services,http://opendatacommunities.org/def/concept/finance/sercop/objective/108,Landlord,,18/12/2017,73771,890,0,Monthly rent ,250000,Housing
South Lakeland District Council,http://opendatacommunities.org/id/district-council/south-lakeland,31/12/2017,Business Support Community Services,Housing Services,http://opendatacommunities.org/def/concept/finance/sercop/objective/108,Landlord,,18/12/2017,73772,700,0,Monthly rent ,250000,Housing
South Lakeland District Council,http://opendatacommunities.org/id/district-council/south-lakeland,31/12/2017,Business Support Community Services,Housing Services,http://opendatacommunities.org/def/concept/finance/sercop/objective/108,Landlord,,18/12/2017,73773,520,0,Monthly rent ,250000,Housing
South Lakeland District Council,http://opendatacommunities.org/id/district-council/south-lakeland,31/12/2017,Business Support Community Services,Housing Services,http://opendatacommunities.org/def/concept/finance/sercop/objective/108,Landlord,,18/12/2017,73774,500,0,Monthly rent ,202000,Financial Services Rents
South Lakeland District Council,http://opendatacommunities.org/id/district-council/south-lakeland,31/12/2017,Business Support Community Services,Housing Services,http://opendatacommunities.org/def/concept/finance/sercop/objective/108,Landlord,7009105,18/12/2017,73775,480,0,Monthly rent ,250000,Housing
South Lakeland District Council,http://opendatacommunities.org/id/district-council/south-lakeland,31/12/2017,Business Support Community Services,Housing Services,http://opendatacommunities.org/def/concept/finance/sercop/objective/108,Landlord,,18/12/2017,73776,415,0,Monthly rent ,250010,Housing Letting Agents
South Lakeland District Council,http://opendatacommunities.org/id/district-council/south-lakeland,31/12/2017,Business Support Community Services,Housing Services,http://opendatacommunities.org/def/concept/finance/sercop/objective/108,Landlord,,18/12/2017,73777,400,0,Monthly rent ,250000,Housing
South Lakeland District Council,http://opendatacommunities.org/id/district-council/south-lakeland,31/12/2017,Community & Housing Group,Housing Services,http://opendatacommunities.org/def/concept/finance/sercop/objective/108,Support Solutions UK Ltd,,18/12/2017,73793,40,0,Fee to attend,250000,Housing
South Lakeland District Council,http://opendatacommunities.org/id/district-council/south-lakeland,31/12/2017,Social Enterprise Admin,Cultural Environmental Regulatory & Planning Services,http://opendatacommunities.org/def/concept/finance/sercop/objective/104,FMG CONSULTING LTD,7309324,18/12/2017,73794,1000,0,Ulverston Leisure Site master Plan -,151900,Consultancy Management
South Lakeland District Council,http://opendatacommunities.org/id/district-council/south-lakeland,31/12/2017,Lake Wardens,Cultural Environmental Regulatory & Planning Services,http://opendatacommunities.org/def/concept/finance/sercop/objective/104,SHORROCK TRICHEM,4179799,18/12/2017,73795,56.06,0,2 x Stardrops Mould & Mildrew,131312,Cleaning & Janitorial Washroom Sanitat
South Lakeland District Council,http://opendatacommunities.org/id/district-council/south-lakeland,31/12/2017,Development Implementation,Central Services,http://opendatacommunities.org/def/concept/finance/sercop/objective/102,LAMBERT SMITH HAMPTON GROUP,2521225,20/12/2017,73797,1395.96,0,Monthly Additional Fee - ,999999,Unclassifiable
South Lakeland District Council,http://opendatacommunities.org/id/district-council/south-lakeland,31/12/2017,Development Implementation,SLDC as Agent,,Cactus Creative Ltd,4198363,20/12/2017,73798,40,0,CT Holiday Guide - Kendal Advert,191000,Facilities Advertising
South Lakeland District Council,http://opendatacommunities.org/id/district-council/south-lakeland,31/12/2017,Development Implementation,Central Services,http://opendatacommunities.org/def/concept/finance/sercop/objective/102,LAMBERT SMITH HAMPTON GROUP,2521225,20/12/2017,73799,44677.08,0,Property Services Contract - October,999999,Unclassifiable
South Lakeland District Council,http://opendatacommunities.org/id/district-council/south-lakeland,31/12/2017,Development Implementation,SLDC as Agent,,Cactus Creative Ltd,4198363,20/12/2017,73800,720,0,Website Maintenance & Support for,191000,Facilities Advertising
South Lakeland District Council,http://opendatacommunities.org/id/district-council/south-lakeland,31/12/2017,Leisure and Wellbeing,Cultural Environmental Regulatory & Planning Services,http://opendatacommunities.org/def/concept/finance/sercop/objective/104,SOUTH LAKES TREE SURGEONS & LANDSCAPES,5342745,20/12/2017,73803,280,0,Bowness/Windermere,241210,Horticultural Tree Trimming
South Lakeland District Council,http://opendatacommunities.org/id/district-council/south-lakeland,31/12/2017,Leisure and Wellbeing,Highways & Transport Services,http://opendatacommunities.org/def/concept/finance/sercop/objective/107,SOUTH LAKES TREE SURGEONS & LANDSCAPES,5342745,20/12/2017,73804,180,0,Fell and remove dead tree at Brewery,241210,Horticultural Tree Trimming
South Lakeland District Council,http://opendatacommunities.org/id/district-council/south-lakeland,31/12/2017,Financial Services,Central Services,http://opendatacommunities.org/def/concept/finance/sercop/objective/102,GRANT THORNTON UK LLP,OC307742,20/12/2017,73805,13962.75,0,2017/18 Audit Fees,201000,Financial Services Accountancy
South Lakeland District Council,http://opendatacommunities.org/id/district-council/south-lakeland,31/12/2017,Social Enterprise Admin,Cultural Environmental Regulatory & Planning Services,http://opendatacommunities.org/def/concept/finance/sercop/objective/104,NEWSQUEST MEDIA GROUP LTD,3102566,20/12/2017,73807,126.96,0,PUBLIC NOTICES FOR PLANNING 1 APRIL - 31,191000,Facilities Advertising
South Lakeland District Council,http://opendatacommunities.org/id/district-council/south-lakeland,31/12/2017,Business Support Community Services,Internal Trading Accounts,,RIBBLESDALE AUTO ELECTRICS 1992 LTD,2732686,20/12/2017,73809,79.89,0,Batteries,381500,Vehicle Mgt Parts
South Lakeland District Council,http://opendatacommunities.org/id/district-council/south-lakeland,31/12/2017,Business Support Community Services,Internal Trading Accounts,,RIBBLESDALE AUTO ELECTRICS 1992 LTD,2732686,20/12/2017,73810,150,0,Parts,381500,Vehicle Mgt Parts
South Lakeland District Council,http://opendatacommunities.org/id/district-council/south-lakeland,31/12/2017,Business Support Community Services,Internal Trading Accounts,,RIBBLESDALE AUTO ELECTRICS 1992 LTD,2732686,20/12/2017,73811,67.5,0,Parts,381500,Vehicle Mgt Parts
South Lakeland District Council,http://opendatacommunities.org/id/district-council/south-lakeland,31/12/2017,Revenues and Benefits,SLDC as Agent,,ROYAL MAIL GROUP PLC,,20/12/2017,73812,1319.63,0,Postal Charges a/c 0198123013 (2017-18),301200,Mail Services� Postage
South Lakeland District Council,http://opendatacommunities.org/id/district-council/south-lakeland,31/12/2017,Leisure and Wellbeing,Cultural Environmental Regulatory & Planning Services,http://opendatacommunities.org/def/concept/finance/sercop/objective/104,AMBLESIDE TREE SERVICES LTD,4460471,20/12/2017,73813,480,0,"Tree works at Kirkfield, Ambleside",241210,Horticultural Tree Trimming
South Lakeland District Council,http://opendatacommunities.org/id/district-council/south-lakeland,31/12/2017,Leisure and Wellbeing,Cultural Environmental Regulatory & Planning Services,http://opendatacommunities.org/def/concept/finance/sercop/objective/104,Another Space,,20/12/2017,73814,2000,0,For Lake District Holocaust Project,201700,Financial Services Grants
South Lakeland District Council,http://opendatacommunities.org/id/district-council/south-lakeland,31/12/2017,Democratic and Member Services,Central Services,http://opendatacommunities.org/def/concept/finance/sercop/objective/102,CUMBRIA COUNTY COUNCIL,,20/12/2017,73816,1166.93,0,renewal of CACI license,908000,Public Bodies Council support services
South Lakeland District Council,http://opendatacommunities.org/id/district-council/south-lakeland,31/12/2017,Customer Services,Central Services,http://opendatacommunities.org/def/concept/finance/sercop/objective/102,STEVEN BARBER PHOTOGRAPHY LTD,6058535,20/12/2017,73817,300,0,steve barber photoraphy for south,191100,Facilities Design & Photography
South Lakeland District Council,http://opendatacommunities.org/id/district-council/south-lakeland,31/12/2017,Leisure and Wellbeing,Culture and Related Serv,http://opendatacommunities.org/def/concept/finance/sercop/objective/104,Spatial Data Limited,2665651,20/12/2017,73818,590,0,survey and drawing work at Kendal parks,391314,Construction Open Spaces Surveys
South Lakeland District Council,http://opendatacommunities.org/id/district-council/south-lakeland,31/12/2017,Business Support Community Services,Housing Services,http://opendatacommunities.org/def/concept/finance/sercop/objective/108,Landlord,,20/12/2017,73822,410,0,Monthly rent ,250000,Housing
South Lakeland District Council,http://opendatacommunities.org/id/district-council/south-lakeland,31/12/2017,Community & Housing Group,Housing Services,http://opendatacommunities.org/def/concept/finance/sercop/objective/108,GROWING CONCERNS LTD,,20/12/2017,73830,1004.81,0,Handy Person,391200,Construction Engineering
South Lakeland District Council,http://opendatacommunities.org/id/district-council/south-lakeland,31/12/2017,Development Implementation,Environment Regulatory,,LAMBERT SMITH HAMPTON GROUP,2521225,20/12/2017,73833,3562.5,0,Rothay Park Flood Impact Works,999999,Unclassifiable
South Lakeland District Council,http://opendatacommunities.org/id/district-council/south-lakeland,31/12/2017,Development Implementation,Cultural Environmental Regulatory & Planning Services,http://opendatacommunities.org/def/concept/finance/sercop/objective/104,LAMBERT SMITH HAMPTON GROUP,2521225,20/12/2017,73834,3465,0,Review of the Depot strategies.,999999,Unclassifiable
South Lakeland District Council,http://opendatacommunities.org/id/district-council/south-lakeland,31/12/2017,Development Implementation,Housing,http://opendatacommunities.org/def/concept/finance/sercop/objective/108,Howe Projects Ltd,,20/12/2017,73835,30227.78,0,Town View Fields Hostel REF: 70701K,109999,Building Not Elsewhere Classified
South Lakeland District Council,http://opendatacommunities.org/id/district-council/south-lakeland,31/12/2017,Business Support Community Services,Internal Trading Accounts,,DENNIS EAGLE LTD,3794455,20/12/2017,73836,184.74,0,Parts,381300,Vehicle Mgt Industrial
South Lakeland District Council,http://opendatacommunities.org/id/district-council/south-lakeland,31/12/2017,Business Support Community Services,Cultural Environmental Regulatory & Planning Services,http://opendatacommunities.org/def/concept/finance/sercop/objective/104,CUMBRIA WASTE RECYCLING LTD,3162439,20/12/2017,73837,15017.3,0,Empty recycling banks in April to,182012,Environment Waste Management Recycling
South Lakeland District Council,http://opendatacommunities.org/id/district-council/south-lakeland,31/12/2017,Business Support Community Services,Internal Trading Accounts,,ARCO LIMITED,133804,20/12/2017,73838,95.8,0,Cleaning materials,141100,Clothing Protective
South Lakeland District Council,http://opendatacommunities.org/id/district-council/south-lakeland,31/12/2017,Business Support Community Services,Central Services,http://opendatacommunities.org/def/concept/finance/sercop/objective/102,Southall Associates Limited,5751804,20/12/2017,73839,130,0,Safe Operating Procedures,202100,Financial Services Subscriptions
South Lakeland District Council,http://opendatacommunities.org/id/district-council/south-lakeland,31/12/2017,Business Support Community Services,Internal Trading Accounts,,EK MOTOR FACTORS LTD,838524,20/12/2017,73840,0.53,0,Parts,381400,Vehicle Mgt Maintenance
South Lakeland District Council,http://opendatacommunities.org/id/district-council/south-lakeland,31/12/2017,Business Support Community Services,Internal Trading Accounts,,TPS Preston,,20/12/2017,73841,41.34,0,Parts,381400,Vehicle Mgt Maintenance
South Lakeland District Council,http://opendatacommunities.org/id/district-council/south-lakeland,31/12/2017,Business Support Community Services,Internal Trading Accounts,,TPS Preston,,20/12/2017,73842,34.25,0,Parts,381400,Vehicle Mgt Maintenance
South Lakeland District Council,http://opendatacommunities.org/id/district-council/south-lakeland,31/12/2017,Business Support Community Services,Internal Trading Accounts,,HYDRAIR TRUCK & TRAILER PARTS LTD,,20/12/2017,73843,85.2,0,Parts,381500,Vehicle Mgt Parts
South Lakeland District Council,http://opendatacommunities.org/id/district-council/south-lakeland,31/12/2017,Business Support Community Services,Housing Services,http://opendatacommunities.org/def/concept/finance/sercop/objective/108,Landlord,,20/12/2017,73846,425,0,"Rent in advance for Basement Flat,",250000,Housing
South Lakeland District Council,http://opendatacommunities.org/id/district-council/south-lakeland,31/12/2017,Development Implementation,Central Services,http://opendatacommunities.org/def/concept/finance/sercop/objective/102,SK Environmental Solutions Ltd,7568590,20/12/2017,73856,490.4,0,Bat Survey at Stockghyll,180000,Environmental Services
South Lakeland District Council,http://opendatacommunities.org/id/district-council/south-lakeland,31/12/2017,Community & Housing Group,Housing,http://opendatacommunities.org/def/concept/finance/sercop/objective/108,F.D.S Architectural,,20/12/2017,73857,960,0,2nd payment for Architectural work at,391000,Construction Architect
South Lakeland District Council,http://opendatacommunities.org/id/district-council/south-lakeland,31/12/2017,Environment and Housing,Housing,http://opendatacommunities.org/def/concept/finance/sercop/objective/108,Mr & Mrs RW Hogben (Property Account),,20/12/2017,73858,16000,0,Affordable Housing Grant in respect of,250000,Housing
South Lakeland District Council,http://opendatacommunities.org/id/district-council/south-lakeland,31/12/2017,Business Support Community Services,Internal Trading Accounts,,S J Bargh,532272,20/12/2017,73859,246.4,0,MOTs 2017/18,381400,Vehicle Mgt Maintenance
South Lakeland District Council,http://opendatacommunities.org/id/district-council/south-lakeland,31/12/2017,Business Support Community Services,Internal Trading Accounts,,Harry Park Tyres Ltd,8131208,20/12/2017,73860,30,0,Tyre,381500,Vehicle Mgt Parts
South Lakeland District Council,http://opendatacommunities.org/id/district-council/south-lakeland,31/12/2017,Business Support Community Services,Internal Trading Accounts,,BRIAN ARMISTEAD LTD T/A SINKFALL RECYCLI,4133280,20/12/2017,73861,1034.84,0,Green waste tipping - 2017/18,391110,Construction Buildings Construction
South Lakeland District Council,http://opendatacommunities.org/id/district-council/south-lakeland,31/12/2017,Business Support Community Services,Central Services,http://opendatacommunities.org/def/concept/finance/sercop/objective/102,ONE51 ES Plastics (UK) Ltd t/aMGB Plasti,,20/12/2017,73862,11785.8,0,"240L Grey Plastic Wheeled Bin, Fully",231700,Highways Street Furniture & Ironworks
South Lakeland District Council,http://opendatacommunities.org/id/district-council/south-lakeland,31/12/2017,Business Support Community Services,Internal Trading Accounts,,H WICKS (LINDAL) LTD,754590,20/12/2017,73863,900,0,"Gate fees, handling, transport & baling",182012,Environment Waste Management Recycling
South Lakeland District Council,http://opendatacommunities.org/id/district-council/south-lakeland,31/12/2017,Business Support Community Services,SLDC as Agent,,DtL Creative Ltd,,20/12/2017,73864,2000,0,Consultancy Services for Cumbria Choice,150000,Consultancy
South Lakeland District Council,http://opendatacommunities.org/id/district-council/south-lakeland,31/12/2017,Business Support Community Services,Internal Trading Accounts,,NORTHGATE VEHICLE HIRE LTD,1434157,20/12/2017,73865,74,0,Car hire - 24/7 to 26/7,381600,Vehicle Mgt Leasing
South Lakeland District Council,http://opendatacommunities.org/id/district-council/south-lakeland,31/12/2017,Business Support Community Services,Internal Trading Accounts,,DENNIS EAGLE LTD,3794455,20/12/2017,73866,332.28,0,Parts,381300,Vehicle Mgt Industrial
South Lakeland District Council,http://opendatacommunities.org/id/district-council/south-lakeland,31/12/2017,Financial Services,Non-Service Payments,,CYCLESCHEME LTD,5363678,20/12/2017,73872,583.33,0,Specialized cycle Katie Bamber,389999,Vehicle Mgt Not Else Class
South Lakeland District Council,http://opendatacommunities.org/id/district-council/south-lakeland,31/12/2017,Democratic and Member Services,Cultural Environmental Regulatory & Planning Services,http://opendatacommunities.org/def/concept/finance/sercop/objective/104,PRESTON RICHARD PARISH COUNCIL,,20/12/2017,73877,100,0,Locality donation to purchase a new,908000,Public Bodies Council support services
South Lakeland District Council,http://opendatacommunities.org/id/district-council/south-lakeland,31/12/2017,Business Support Community Services,Internal Trading Accounts,,ARCO LIMITED,133804,20/12/2017,73878,31.95,0,Cleaning materials,141100,Clothing Protective
South Lakeland District Council,http://opendatacommunities.org/id/district-council/south-lakeland,31/12/2017,Business Support Community Services,Internal Trading Accounts,,CUMBRIA WASTE RECYCLING LTD,3162439,20/12/2017,73879,472,0,Skip emptying at Ecclerigg & Ulverston,182012,Environment Waste Management Recycling
South Lakeland District Council,http://opendatacommunities.org/id/district-council/south-lakeland,31/12/2017,Business Support Community Services,Internal Trading Accounts,,CUMBRIA WASTE RECYCLING LTD,3162439,20/12/2017,73880,2090.16,0,Skip emptying at Ecclerigg & Ulverston,182012,Environment Waste Management Recycling
South Lakeland District Council,http://opendatacommunities.org/id/district-council/south-lakeland,31/12/2017,Business Support Community Services,Internal Trading Accounts,,Southfield Garage,,20/12/2017,73881,200,0,"Repair SL007, 008 & 032",380000,Vehicle Management
South Lakeland District Council,http://opendatacommunities.org/id/district-council/south-lakeland,31/12/2017,Business Support Community Services,Internal Trading Accounts,,ARCO LIMITED,133804,20/12/2017,73882,21.38,0,Cleaning materials,141100,Clothing Protective
South Lakeland District Council,http://opendatacommunities.org/id/district-council/south-lakeland,31/12/2017,Business Support Community Services,Internal Trading Accounts,,Southfield Garage,,20/12/2017,73883,200,0,"Repair SL007, 008 & 032",380000,Vehicle Management
South Lakeland District Council,http://opendatacommunities.org/id/district-council/south-lakeland,31/12/2017,Business Support Community Services,Internal Trading Accounts,,TAYLOR ENGINEERING & FABRICATIONS LTD,4989359,20/12/2017,73884,149.8,0,Parts,391200,Construction Engineering
